Workbook

Sheet d=100
A1: Flow Profile at downstream signal (minor TH movement)
A3: Given Data | E3: Robertson Model | I3: Movement | J3: tc | K3: tf | M3: Summary | N3: Cap | O3: Distance | P3: Blocked | R3: ConFlow-Option 3 | U3: Capacity Options | Z3: Analysis of one cycle period (t=42-101)
A4: C | B4: 60 | C4: sec | E4: Distance | F4: 100 | G4: ft | I4: MajorLT | J4: 4.1 | K4: 2.2 | M4: GapCap | N4: =(INT((B4-B9-J6)/K6)+1)*(3600/B4) -> 600 | R4: ConFlow | S4: =SUM(C47:C106)/60 -> 587.7461218 | U4: Option | V4: CapFlow | W4: PropBlocked
A5: G | B5: 30 | C5: sec | E5: Speed | F5: 25 | G5: mi/hr | I5: MinorRT | J5: 6.2 | K5: 3.3 | M5: c random | N5: =PotCap(B8,J6,K6,0) -> 417.3579939 | U5: 3 | V5: =PotCap(S4,J6,K6,0) -> 424.1151548
A6: R | B6: =B4-B5 -> 30 | C6: sec | E6: tR | F6: =(F4)/(1.47*F5) -> 2.721088435 | G6: sec | I6: MinorTH | J6: 6.5 | K6: 4 | R6: Critical flow line | U6: 4 | V6: =AVERAGE(E47:E106) -> 442.962166
A7: SatFlow | B7: 1800 | C7: veh/hr-g | E7: tprime | F7: =tprime(F6,F8) -> 2.280578231 | G7: sec | I7: MinorLT | J7: 7.1 | K7: 3.5 | S7: =3600/$J$6 -> 553.8461538 | T7: 42
A8: ArrFlow | B8: 600 | C8: veh/hr | E8: F | F8: =F(F6) -> 0.5915373936 | S8: =3600/$J$6 -> 553.8461538 | T8: 111
A9: gq | B9: =(B8*B6)/(B7-B8) -> 15 | C9: sec
A10: gu | B10: =B5-B9 -> 15 | C10: sec
A13: Time i | B13: DepFlowi | C13: ArrFlowj | D13: Blocked? | E13: PotCapGap
A14: 0 | B14: =DepFlowi($B$9,$B$5,$B$4,$B$8,$B$7,A14) -> 0 | C14: =IF(A14>$F$7+$B$6,ArrFlow_j(INDIRECT("b"&ROW()-INT($F$7)),C13,$F$8),0) -> 0 | D14: =IF(C14>(3600/$J$6),1,0) -> 0 | E14: =IF(A14>$B$6+$F$7,PotCap(C14,$J$6,$K$6,D14),"") -> 
A15: 1 | B15: 0 | C15: =IF(A15>$F$7+$B$6,ArrFlow_j(INDIRECT("b"&ROW()-INT($F$7)),C14,$F$8),0) -> 0 | D15: =IF(C15>(3600/$J$6),1,0) -> 0
A16: 2 | B16: 0 | C16: =IF(A16>$F$7+$B$6,ArrFlow_j(INDIRECT("b"&ROW()-INT($F$7)),C15,$F$8),0) -> 0 | D16: 0
A17: 3 | B17: 0 | C17: =IF(A17>$F$7+$B$6,ArrFlow_j(INDIRECT("b"&ROW()-INT($F$7)),C16,$F$8),0) -> 0 | D17: 0
A18: 4 | B18: 0 | C18: =IF(A18>$F$7+$B$6,ArrFlow_j(INDIRECT("b"&ROW()-INT($F$7)),C17,$F$8),0) -> 0 | D18: 0
A19: 5 | B19: 0 | C19: =IF(A19>$F$7+$B$6,ArrFlow_j(INDIRECT("b"&ROW()-INT($F$7)),C18,$F$8),0) -> 0 | D19: 0
A20: 6 | B20: 0 | C20: =IF(A20>$F$7+$B$6,ArrFlow_j(INDIRECT("b"&ROW()-INT($F$7)),C19,$F$8),0) -> 0 | D20: 0
A21: 7 | B21: 0 | C21: =IF(A21>$F$7+$B$6,ArrFlow_j(INDIRECT("b"&ROW()-INT($F$7)),C20,$F$8),0) -> 0 | D21: 0
A22: 8 | B22: 0 | C22: =IF(A22>$F$7+$B$6,ArrFlow_j(INDIRECT("b"&ROW()-INT($F$7)),C21,$F$8),0) -> 0 | D22: 0
A23: 9 | B23: 0 | C23: =IF(A23>$F$7+$B$6,ArrFlow_j(INDIRECT("b"&ROW()-INT($F$7)),C22,$F$8),0) -> 0 | D23: 0
A24: 10 | B24: 0 | C24: =IF(A24>$F$7+$B$6,ArrFlow_j(INDIRECT("b"&ROW()-INT($F$7)),C23,$F$8),0) -> 0 | D24: 0
A25: 11 | B25: 0 | C25: =IF(A25>$F$7+$B$6,ArrFlow_j(INDIRECT("b"&ROW()-INT($F$7)),C24,$F$8),0) -> 0 | D25: 0
A26: 12 | B26: 0 | C26: =IF(A26>$F$7+$B$6,ArrFlow_j(INDIRECT("b"&ROW()-INT($F$7)),C25,$F$8),0) -> 0 | D26: 0
A27: 13 | B27: 0 | C27: =IF(A27>$F$7+$B$6,ArrFlow_j(INDIRECT("b"&ROW()-INT($F$7)),C26,$F$8),0) -> 0 | D27: 0
A28: 14 | B28: 0 | C28: =IF(A28>$F$7+$B$6,ArrFlow_j(INDIRECT("b"&ROW()-INT($F$7)),C27,$F$8),0) -> 0 | D28: 0
A29: 15 | B29: 0 | C29: =IF(A29>$F$7+$B$6,ArrFlow_j(INDIRECT("b"&ROW()-INT($F$7)),C28,$F$8),0) -> 0 | D29: 0
A30: 16 | B30: 0 | C30: =IF(A30>$F$7+$B$6,ArrFlow_j(INDIRECT("b"&ROW()-INT($F$7)),C29,$F$8),0) -> 0 | D30: 0
A31: 17 | B31: 0 | C31: =IF(A31>$F$7+$B$6,ArrFlow_j(INDIRECT("b"&ROW()-INT($F$7)),C30,$F$8),0) -> 0 | D31: 0
A32: 18 | B32: 0 | C32: =IF(A32>$F$7+$B$6,ArrFlow_j(INDIRECT("b"&ROW()-INT($F$7)),C31,$F$8),0) -> 0 | D32: 0
A33: 19 | B33: 0 | C33: =IF(A33>$F$7+$B$6,ArrFlow_j(INDIRECT("b"&ROW()-INT($F$7)),C32,$F$8),0) -> 0 | D33: 0
A34: 20 | B34: 0 | C34: =IF(A34>$F$7+$B$6,ArrFlow_j(INDIRECT("b"&ROW()-INT($F$7)),C33,$F$8),0) -> 0 | D34: 0
A35: 21 | B35: 0 | C35: =IF(A35>$F$7+$B$6,ArrFlow_j(INDIRECT("b"&ROW()-INT($F$7)),C34,$F$8),0) -> 0 | D35: 0
A36: 22 | B36: 0 | C36: =IF(A36>$F$7+$B$6,ArrFlow_j(INDIRECT("b"&ROW()-INT($F$7)),C35,$F$8),0) -> 0 | D36: 0
A37: 23 | B37: 0 | C37: =IF(A37>$F$7+$B$6,ArrFlow_j(INDIRECT("b"&ROW()-INT($F$7)),C36,$F$8),0) -> 0 | D37: 0
A38: 24 | B38: 0 | C38: =IF(A38>$F$7+$B$6,ArrFlow_j(INDIRECT("b"&ROW()-INT($F$7)),C37,$F$8),0) -> 0 | D38: 0
A39: 25 | B39: 0 | C39: =IF(A39>$F$7+$B$6,ArrFlow_j(INDIRECT("b"&ROW()-INT($F$7)),C38,$F$8),0) -> 0 | D39: 0
A40: 26 | B40: 0 | C40: =IF(A40>$F$7+$B$6,ArrFlow_j(INDIRECT("b"&ROW()-INT($F$7)),C39,$F$8),0) -> 0 | D40: 0
A41: 27 | B41: 0 | C41: =IF(A41>$F$7+$B$6,ArrFlow_j(INDIRECT("b"&ROW()-INT($F$7)),C40,$F$8),0) -> 0 | D41: 0
A42: 28 | B42: 0 | C42: =IF(A42>$F$7+$B$6,ArrFlow_j(INDIRECT("b"&ROW()-INT($F$7)),C41,$F$8),0) -> 0 | D42: 0
A43: 29 | B43: 0 | C43: =IF(A43>$F$7+$B$6,ArrFlow_j(INDIRECT("b"&ROW()-INT($F$7)),C42,$F$8),0) -> 0 | D43: 0
A44: 30 | B44: 1800 | C44: =IF(A44>$F$7+$B$6,ArrFlow_j(INDIRECT("b"&ROW()-INT($F$7)),C43,$F$8),0) -> 0 | D44: 0
A45: 31 | B45: 1800 | C45: =IF(A45>$F$7+$B$6,ArrFlow_j(INDIRECT("b"&ROW()-INT($F$7)),C44,$F$8),0) -> 0 | D45: 0
A46: 32 | B46: 1800 | C46: =IF(A46>$F$7+$B$6,ArrFlow_j(INDIRECT("b"&ROW()-INT($F$7)),C45,$F$8),0) -> 0 | D46: 0
A47: 33 | B47: 1800 | C47: =IF(A47>$F$7+$B$6,ArrFlow_j(INDIRECT("b"&ROW()-INT($F$7)),C46,$F$8),0) -> 1064.767309 | D47: 1 | E47: 0
A48: 34 | B48: 1800 | C48: =IF(A48>$F$7+$B$6,ArrFlow_j(INDIRECT("b"&ROW()-INT($F$7)),C47,$F$8),0) -> 1499.684939 | D48: 1 | E48: 0
A49: 35 | B49: 1800 | C49: =IF(A49>$F$7+$B$6,ArrFlow_j(INDIRECT("b"&ROW()-INT($F$7)),C48,$F$8),0) -> 1677.332527 | D49: 1 | E49: 0
A50: 36 | B50: 1800 | C50: =IF(A50>$F$7+$B$6,ArrFlow_j(INDIRECT("b"&ROW()-INT($F$7)),C49,$F$8),0) -> 1749.894924 | D50: 1 | E50: 0
A51: 37 | B51: 1800 | C51: =IF(A51>$F$7+$B$6,ArrFlow_j(INDIRECT("b"&ROW()-INT($F$7)),C50,$F$8),0) -> 1779.53395 | D51: 1 | E51: 0
A52: 38 | B52: 1800 | C52: =IF(A52>$F$7+$B$6,ArrFlow_j(INDIRECT("b"&ROW()-INT($F$7)),C51,$F$8),0) -> 1791.640384 | D52: 1 | E52: 0
A53: 39 | B53: 1800 | C53: =IF(A53>$F$7+$B$6,ArrFlow_j(INDIRECT("b"&ROW()-INT($F$7)),C52,$F$8),0) -> 1796.585409 | D53: 1 | E53: 0
A54: 40 | B54: 1800 | C54: =IF(A54>$F$7+$B$6,ArrFlow_j(INDIRECT("b"&ROW()-INT($F$7)),C53,$F$8),0) -> 1798.605267 | D54: 1 | E54: 0
A55: 41 | B55: 1800 | C55: =IF(A55>$F$7+$B$6,ArrFlow_j(INDIRECT("b"&ROW()-INT($F$7)),C54,$F$8),0) -> 1799.430304 | D55: 1 | E55: 0
A56: 42 | B56: 1800 | C56: =IF(A56>$F$7+$B$6,ArrFlow_j(INDIRECT("b"&ROW()-INT($F$7)),C55,$F$8),0) -> 1799.7673 | D56: 1 | E56: 0
A57: 43 | B57: 1800 | C57: =IF(A57>$F$7+$B$6,ArrFlow_j(INDIRECT("b"&ROW()-INT($F$7)),C56,$F$8),0) -> 1799.904951 | D57: 1 | E57: 0
A58: 44 | B58: 1800 | C58: =IF(A58>$F$7+$B$6,ArrFlow_j(INDIRECT("b"&ROW()-INT($F$7)),C57,$F$8),0) -> 1799.961176 | D58: 1 | E58: 0
A59: 45 | B59: 600 | C59: =IF(A59>$F$7+$B$6,ArrFlow_j(INDIRECT("b"&ROW()-INT($F$7)),C58,$F$8),0) -> 1799.984142 | D59: 1 | E59: 0
A60: 46 | B60: 600 | C60: =IF(A60>$F$7+$B$6,ArrFlow_j(INDIRECT("b"&ROW()-INT($F$7)),C59,$F$8),0) -> 1799.993523 | D60: 1 | E60: 0
A61: 47 | B61: 600 | C61: =IF(A61>$F$7+$B$6,ArrFlow_j(INDIRECT("b"&ROW()-INT($F$7)),C60,$F$8),0) -> 1090.152482 | D61: 1 | E61: 0
A62: 48 | B62: 600 | C62: =IF(A62>$F$7+$B$6,ArrFlow_j(INDIRECT("b"&ROW()-INT($F$7)),C61,$F$8),0) -> 800.2089603 | D62: 1 | E62: 0
A63: 49 | B63: 600 | C63: =IF(A63>$F$7+$B$6,ArrFlow_j(INDIRECT("b"&ROW()-INT($F$7)),C62,$F$8),0) -> 681.7778737 | D63: 1 | E63: 0
A64: 50 | B64: 600 | C64: =IF(A64>$F$7+$B$6,ArrFlow_j(INDIRECT("b"&ROW()-INT($F$7)),C63,$F$8),0) -> 633.4032034 | D64: 1 | E64: 0
A65: 51 | B65: 600 | C65: =IF(A65>$F$7+$B$6,ArrFlow_j(INDIRECT("b"&ROW()-INT($F$7)),C64,$F$8),0) -> 613.6439595 | D65: 1 | E65: 0
A66: 52 | B66: 600 | C66: =IF(A66>$F$7+$B$6,ArrFlow_j(INDIRECT("b"&ROW()-INT($F$7)),C65,$F$8),0) -> 605.5730473 | D66: 1 | E66: 0
A67: 53 | B67: 600 | C67: =IF(A67>$F$7+$B$6,ArrFlow_j(INDIRECT("b"&ROW()-INT($F$7)),C66,$F$8),0) -> 602.2763814 | D67: 1 | E67: 0
A68: 54 | B68: 600 | C68: =IF(A68>$F$7+$B$6,ArrFlow_j(INDIRECT("b"&ROW()-INT($F$7)),C67,$F$8),0) -> 600.9298167 | D68: 1 | E68: 0
A69: 55 | B69: 600 | C69: =IF(A69>$F$7+$B$6,ArrFlow_j(INDIRECT("b"&ROW()-INT($F$7)),C68,$F$8),0) -> 600.3797953 | D69: 1 | E69: 0
A70: 56 | B70: 600 | C70: =IF(A70>$F$7+$B$6,ArrFlow_j(INDIRECT("b"&ROW()-INT($F$7)),C69,$F$8),0) -> 600.1551322 | D70: 1 | E70: 0
A71: 57 | B71: 600 | C71: =IF(A71>$F$7+$B$6,ArrFlow_j(INDIRECT("b"&ROW()-INT($F$7)),C70,$F$8),0) -> 600.0633657 | D71: 1 | E71: 0
A72: 58 | B72: 600 | C72: =IF(A72>$F$7+$B$6,ArrFlow_j(INDIRECT("b"&ROW()-INT($F$7)),C71,$F$8),0) -> 600.0258825 | D72: 1 | E72: 0
A73: 59 | B73: 600 | C73: =IF(A73>$F$7+$B$6,ArrFlow_j(INDIRECT("b"&ROW()-INT($F$7)),C72,$F$8),0) -> 600.010572 | D73: 1 | E73: 0
A74: 60 | B74: 0 | C74: =IF(A74>$F$7+$B$6,ArrFlow_j(INDIRECT("b"&ROW()-INT($F$7)),C73,$F$8),0) -> 600.0043183 | D74: 1 | E74: 0
A75: 61 | B75: 0 | C75: =IF(A75>$F$7+$B$6,ArrFlow_j(INDIRECT("b"&ROW()-INT($F$7)),C74,$F$8),0) -> 600.0017639 | D75: 1 | E75: 0
A76: 62 | B76: 0 | C76: =IF(A76>$F$7+$B$6,ArrFlow_j(INDIRECT("b"&ROW()-INT($F$7)),C75,$F$8),0) -> 245.0782843 | D76: 0 | E76: 660.4749092
A77: 63 | B77: 0 | C77: =IF(A77>$F$7+$B$6,ArrFlow_j(INDIRECT("b"&ROW()-INT($F$7)),C76,$F$8),0) -> 100.1053148 | D77: 0 | E77: 793.7334389
A78: 64 | B78: =DepFlowi($B$9,$B$5,$B$4,$B$8,$B$7,A78) -> 0 | C78: =IF(A78>$F$7+$B$6,ArrFlow_j(INDIRECT("b"&ROW()-INT($F$7)),C77,$F$8),0) -> 40.88927779 | D78: 0 | E78: =IF(A78>$B$6+$F$7,PotCap(C78,$J$6,$K$6,D78),"") -> 855.0818222
A79: 65 | B79: 0 | C79: =IF(A79>$F$7+$B$6,ArrFlow_j(INDIRECT("b"&ROW()-INT($F$7)),C78,$F$8),0) -> 16.70174098 | D79: =IF(C79>(3600/$J$6),1,0) -> 0 | E79: 881.3926717
A80: 66 | B80: 0 | C80: =IF(A80>$F$7+$B$6,ArrFlow_j(INDIRECT("b"&ROW()-INT($F$7)),C79,$F$8),0) -> 6.822036651 | D80: 0 | E80: 892.3557032
A81: 67 | B81: 0 | C81: =IF(A81>$F$7+$B$6,ArrFlow_j(INDIRECT("b"&ROW()-INT($F$7)),C80,$F$8),0) -> 2.786546871 | D81: 0 | E81: 896.8702299
A82: 68 | B82: 0 | C82: =IF(A82>$F$7+$B$6,ArrFlow_j(INDIRECT("b"&ROW()-INT($F$7)),C81,$F$8),0) -> 1.138200198 | D82: 0 | E82: 898.7203754
A83: 69 | B83: 0 | C83: =IF(A83>$F$7+$B$6,ArrFlow_j(INDIRECT("b"&ROW()-INT($F$7)),C82,$F$8),0) -> 0.4649122194 | D83: 0 | E83: 899.4771157
A84: 70 | B84: 0 | C84: =IF(A84>$F$7+$B$6,ArrFlow_j(INDIRECT("b"&ROW()-INT($F$7)),C83,$F$8),0) -> 0.1898992569 | D84: 0 | E84: 899.786387
A85: 71 | B85: 0 | C85: =IF(A85>$F$7+$B$6,ArrFlow_j(INDIRECT("b"&ROW()-INT($F$7)),C84,$F$8),0) -> 0.07756674542 | D85: 0 | E85: 899.9127414
A86: 72 | B86: 0 | C86: =IF(A86>$F$7+$B$6,ArrFlow_j(INDIRECT("b"&ROW()-INT($F$7)),C85,$F$8),0) -> 0.031683115 | D86: 0 | E86: 899.9643572
A87: 73 | B87: 0 | C87: =IF(A87>$F$7+$B$6,ArrFlow_j(INDIRECT("b"&ROW()-INT($F$7)),C86,$F$8),0) -> 0.01294136773 | D87: 0 | E87: 899.9854411
A88: 74 | B88: 0 | C88: =IF(A88>$F$7+$B$6,ArrFlow_j(INDIRECT("b"&ROW()-INT($F$7)),C87,$F$8),0) -> 0.005286064794 | D88: 0 | E88: 899.9940532
A89: 75 | B89: 0 | C89: =IF(A89>$F$7+$B$6,ArrFlow_j(INDIRECT("b"&ROW()-INT($F$7)),C88,$F$8),0) -> 0.002159159803 | D89: 0 | E89: 899.9975709
A90: 76 | B90: 0 | C90: =IF(A90>$F$7+$B$6,ArrFlow_j(INDIRECT("b"&ROW()-INT($F$7)),C89,$F$8),0) -> 0.0008819360409 | D90: 0 | E90: 899.9990078
A91: 77 | B91: 0 | C91: =IF(A91>$F$7+$B$6,ArrFlow_j(INDIRECT("b"&ROW()-INT($F$7)),C90,$F$8),0) -> 0.0003602378939 | D91: 0 | E91: 899.9995949
A92: 78 | B92: 0 | C92: =IF(A92>$F$7+$B$6,ArrFlow_j(INDIRECT("b"&ROW()-INT($F$7)),C91,$F$8),0) -> 0.0001471437091 | D92: 0 | E92: 899.9998345
A93: 79 | B93: 0 | C93: =IF(A93>$F$7+$B$6,ArrFlow_j(INDIRECT("b"&ROW()-INT($F$7)),C92,$F$8),0) -> 6.010270292e-05 | D93: 0 | E93: 899.9999323
A94: 80 | B94: 0 | C94: =IF(A94>$F$7+$B$6,ArrFlow_j(INDIRECT("b"&ROW()-INT($F$7)),C93,$F$8),0) -> 2.454970669e-05 | D94: 0 | E94: 899.9999717
A95: 81 | B95: 0 | C95: =IF(A95>$F$7+$B$6,ArrFlow_j(INDIRECT("b"&ROW()-INT($F$7)),C94,$F$8),0) -> 1.002763718e-05 | D95: 0 | E95: 899.9999889
A96: 82 | B96: 0 | C96: =IF(A96>$F$7+$B$6,ArrFlow_j(INDIRECT("b"&ROW()-INT($F$7)),C95,$F$8),0) -> 4.095914818e-06 | D96: 0 | E96: 899.9999957
A97: 83 | B97: 0 | C97: =IF(A97>$F$7+$B$6,ArrFlow_j(INDIRECT("b"&ROW()-INT($F$7)),C96,$F$8),0) -> 1.673028042e-06 | D97: 0 | E97: 900.0000112
A98: 84 | B98: 0 | C98: =IF(A98>$F$7+$B$6,ArrFlow_j(INDIRECT("b"&ROW()-INT($F$7)),C97,$F$8),0) -> 6.833693946e-07 | D98: 0 | E98: 900.000043
A99: 85 | B99: 0 | C99: =IF(A99>$F$7+$B$6,ArrFlow_j(INDIRECT("b"&ROW()-INT($F$7)),C98,$F$8),0) -> 2.79130844e-07 | D99: 0 | E99: 900.0000821
A100: 86 | B100: 0 | C100: =IF(A100>$F$7+$B$6,ArrFlow_j(INDIRECT("b"&ROW()-INT($F$7)),C99,$F$8),0) -> 1.140145121e-07 | D100: 0 | E100: 900.0001122
A101: 87 | B101: 0 | C101: =IF(A101>$F$7+$B$6,ArrFlow_j(INDIRECT("b"&ROW()-INT($F$7)),C100,$F$8),0) -> 4.657066477e-08 | D101: 0 | E101: 900.0003368
A102: 88 | B102: 0 | C102: =IF(A102>$F$7+$B$6,ArrFlow_j(INDIRECT("b"&ROW()-INT($F$7)),C101,$F$8),0) -> 1.902237511e-08 | D102: 0 | E102: 899.9995952
A103: 89 | B103: 0 | C103: =IF(A103>$F$7+$B$6,ArrFlow_j(INDIRECT("b"&ROW()-INT($F$7)),C102,$F$8),0) -> 7.769928919e-09 | D103: 0 | E103: 900.0051178
A104: 90 | B104: 1800 | C104: =IF(A104>$F$7+$B$6,ArrFlow_j(INDIRECT("b"&ROW()-INT($F$7)),C103,$F$8),0) -> 3.173725417e-09 | D104: 0 | E104: 899.9898377
A105: 91 | B105: 1800 | C105: =IF(A105>$F$7+$B$6,ArrFlow_j(INDIRECT("b"&ROW()-INT($F$7)),C104,$F$8),0) -> 1.296348156e-09 | D105: 0 | E105: 899.9896828
A106: 92 | B106: 1800 | C106: =IF(A106>$F$7+$B$6,ArrFlow_j(INDIRECT("b"&ROW()-INT($F$7)),C105,$F$8),0) -> 1064.767309 | D106: 1 | E106: 0
A107: 93 | B107: 1800 | C107: =IF(A107>$F$7+$B$6,ArrFlow_j(INDIRECT("b"&ROW()-INT($F$7)),C106,$F$8),0) -> 1499.684939 | D107: 1 | E107: 0
A108: 94 | B108: 1800 | C108: =IF(A108>$F$7+$B$6,ArrFlow_j(INDIRECT("b"&ROW()-INT($F$7)),C107,$F$8),0) -> 1677.332527 | D108: 1 | E108: 0
A109: 95 | B109: 1800 | C109: =IF(A109>$F$7+$B$6,ArrFlow_j(INDIRECT("b"&ROW()-INT($F$7)),C108,$F$8),0) -> 1749.894924 | D109: 1 | E109: 0
A110: 96 | B110: 1800 | C110: =IF(A110>$F$7+$B$6,ArrFlow_j(INDIRECT("b"&ROW()-INT($F$7)),C109,$F$8),0) -> 1779.53395 | D110: 1 | E110: 0
A111: 97 | B111: 1800 | C111: =IF(A111>$F$7+$B$6,ArrFlow_j(INDIRECT("b"&ROW()-INT($F$7)),C110,$F$8),0) -> 1791.640384 | D111: 1 | E111: 0
A112: 98 | B112: 1800 | C112: =IF(A112>$F$7+$B$6,ArrFlow_j(INDIRECT("b"&ROW()-INT($F$7)),C111,$F$8),0) -> 1796.585409 | D112: 1 | E112: 0
A113: 99 | B113: 1800 | C113: =IF(A113>$F$7+$B$6,ArrFlow_j(INDIRECT("b"&ROW()-INT($F$7)),C112,$F$8),0) -> 1798.605267 | D113: 1 | E113: 0
A114: 100 | B114: 1800 | C114: =IF(A114>$F$7+$B$6,ArrFlow_j(INDIRECT("b"&ROW()-INT($F$7)),C113,$F$8),0) -> 1799.430304 | D114: 1 | E114: 0
A115: 101 | B115: 1800 | C115: =IF(A115>$F$7+$B$6,ArrFlow_j(INDIRECT("b"&ROW()-INT($F$7)),C114,$F$8),0) -> 1799.7673 | D115: 1 | E115: 0
A116: 102 | B116: 1800 | C116: =IF(A116>$F$7+$B$6,ArrFlow_j(INDIRECT("b"&ROW()-INT($F$7)),C115,$F$8),0) -> 1799.904951 | D116: 1 | E116: 0
A117: 103 | B117: 1800 | C117: =IF(A117>$F$7+$B$6,ArrFlow_j(INDIRECT("b"&ROW()-INT($F$7)),C116,$F$8),0) -> 1799.961176 | D117: 1 | E117: 0
A118: 104 | B118: 1800 | C118: =IF(A118>$F$7+$B$6,ArrFlow_j(INDIRECT("b"&ROW()-INT($F$7)),C117,$F$8),0) -> 1799.984142 | D118: 1 | E118: 0
A119: 105 | B119: 600 | C119: =IF(A119>$F$7+$B$6,ArrFlow_j(INDIRECT("b"&ROW()-INT($F$7)),C118,$F$8),0) -> 1799.993523 | D119: 1 | E119: 0
A120: 106 | B120: 600 | C120: =IF(A120>$F$7+$B$6,ArrFlow_j(INDIRECT("b"&ROW()-INT($F$7)),C119,$F$8),0) -> 1799.997354 | D120: 1 | E120: 0
A121: 107 | B121: 600 | C121: =IF(A121>$F$7+$B$6,ArrFlow_j(INDIRECT("b"&ROW()-INT($F$7)),C120,$F$8),0) -> 1090.154047 | D121: 1 | E121: 0
A122: 108 | B122: 600 | C122: =IF(A122>$F$7+$B$6,ArrFlow_j(INDIRECT("b"&ROW()-INT($F$7)),C121,$F$8),0) -> 800.2095995 | D122: 1 | E122: 0
A123: 109 | B123: 600 | C123: =IF(A123>$F$7+$B$6,ArrFlow_j(INDIRECT("b"&ROW()-INT($F$7)),C122,$F$8),0) -> 681.7781349 | D123: 1 | E123: 0
A124: 110 | B124: 600 | C124: =IF(A124>$F$7+$B$6,ArrFlow_j(INDIRECT("b"&ROW()-INT($F$7)),C123,$F$8),0) -> 633.4033101 | D124: 1 | E124: 0
A125: 111 | B125: 600 | C125: =IF(A125>$F$7+$B$6,ArrFlow_j(INDIRECT("b"&ROW()-INT($F$7)),C124,$F$8),0) -> 613.6440031 | D125: 1 | E125: 0
A126: 112 | B126: 600 | C126: =IF(A126>$F$7+$B$6,ArrFlow_j(INDIRECT("b"&ROW()-INT($F$7)),C125,$F$8),0) -> 605.5730651 | D126: 1 | E126: 0
A127: 113 | B127: 600 | C127: =IF(A127>$F$7+$B$6,ArrFlow_j(INDIRECT("b"&ROW()-INT($F$7)),C126,$F$8),0) -> 602.2763887 | D127: 1 | E127: 0
A128: 114 | B128: 600 | C128: =IF(A128>$F$7+$B$6,ArrFlow_j(INDIRECT("b"&ROW()-INT($F$7)),C127,$F$8),0) -> 600.9298197 | D128: 1 | E128: 0
A129: 115 | B129: 600 | C129: =IF(A129>$F$7+$B$6,ArrFlow_j(INDIRECT("b"&ROW()-INT($F$7)),C128,$F$8),0) -> 600.3797966 | D129: 1 | E129: 0
A130: 116 | B130: 600 | C130: =IF(A130>$F$7+$B$6,ArrFlow_j(INDIRECT("b"&ROW()-INT($F$7)),C129,$F$8),0) -> 600.1551327 | D130: 1 | E130: 0
A131: 117 | B131: 600 | C131: =IF(A131>$F$7+$B$6,ArrFlow_j(INDIRECT("b"&ROW()-INT($F$7)),C130,$F$8),0) -> 600.0633659 | D131: 1 | E131: 0
A132: 118 | B132: 600 | C132: =IF(A132>$F$7+$B$6,ArrFlow_j(INDIRECT("b"&ROW()-INT($F$7)),C131,$F$8),0) -> 600.0258826 | D132: 1 | E132: 0
A133: 119 | B133: 600 | C133: =IF(A133>$F$7+$B$6,ArrFlow_j(INDIRECT("b"&ROW()-INT($F$7)),C132,$F$8),0) -> 600.0105721 | D133: 1 | E133: 0
A134: 120 | B134: 0 | C134: =IF(A134>$F$7+$B$6,ArrFlow_j(INDIRECT("b"&ROW()-INT($F$7)),C133,$F$8),0) -> 600.0043183 | D134: 1 | E134: 0
A135: 121 | B135: 0 | C135: =IF(A135>$F$7+$B$6,ArrFlow_j(INDIRECT("b"&ROW()-INT($F$7)),C134,$F$8),0) -> 600.0017639 | D135: 1 | E135: 0
A136: 122 | B136: 0 | C136: =IF(A136>$F$7+$B$6,ArrFlow_j(INDIRECT("b"&ROW()-INT($F$7)),C135,$F$8),0) -> 245.0782843 | D136: 0 | E136: 660.4749092
A137: 123 | B137: 0 | C137: =IF(A137>$F$7+$B$6,ArrFlow_j(INDIRECT("b"&ROW()-INT($F$7)),C136,$F$8),0) -> 100.1053148 | D137: 0 | E137: 793.7334389
A138: 124 | B138: 0 | C138: =IF(A138>$F$7+$B$6,ArrFlow_j(INDIRECT("b"&ROW()-INT($F$7)),C137,$F$8),0) -> 40.88927779 | D138: 0 | E138: 855.0818222
A139: 125 | B139: 0 | C139: =IF(A139>$F$7+$B$6,ArrFlow_j(INDIRECT("b"&ROW()-INT($F$7)),C138,$F$8),0) -> 16.70174098 | D139: 0 | E139: 881.3926717
A140: 126 | B140: 0 | C140: =IF(A140>$F$7+$B$6,ArrFlow_j(INDIRECT("b"&ROW()-INT($F$7)),C139,$F$8),0) -> 6.822036651 | D140: 0 | E140: 892.3557032
A141: 127 | B141: 0 | C141: =IF(A141>$F$7+$B$6,ArrFlow_j(INDIRECT("b"&ROW()-INT($F$7)),C140,$F$8),0) -> 2.786546871 | D141: 0 | E141: 896.8702299
A142: 128 | B142: =DepFlowi($B$9,$B$5,$B$4,$B$8,$B$7,A142) -> 0 | C142: =IF(A142>$F$7+$B$6,ArrFlow_j(INDIRECT("b"&ROW()-INT($F$7)),C141,$F$8),0) -> 1.138200198 | D142: 0 | E142: =IF(A142>$B$6+$F$7,PotCap(C142,$J$6,$K$6,D142),"") -> 898.7203754
A143: 129 | B143: 0 | C143: =IF(A143>$F$7+$B$6,ArrFlow_j(INDIRECT("b"&ROW()-INT($F$7)),C142,$F$8),0) -> 0.4649122194 | D143: =IF(C143>(3600/$J$6),1,0) -> 0 | E143: 899.4771157
A144: 130 | B144: 0 | C144: =IF(A144>$F$7+$B$6,ArrFlow_j(INDIRECT("b"&ROW()-INT($F$7)),C143,$F$8),0) -> 0.1898992569 | D144: 0 | E144: 899.786387
A145: 131 | B145: 0 | C145: =IF(A145>$F$7+$B$6,ArrFlow_j(INDIRECT("b"&ROW()-INT($F$7)),C144,$F$8),0) -> 0.07756674542 | D145: 0 | E145: 899.9127414
A146: 132 | B146: 0 | C146: =IF(A146>$F$7+$B$6,ArrFlow_j(INDIRECT("b"&ROW()-INT($F$7)),C145,$F$8),0) -> 0.031683115 | D146: 0 | E146: 899.9643572
A147: 133 | B147: 0 | C147: =IF(A147>$F$7+$B$6,ArrFlow_j(INDIRECT("b"&ROW()-INT($F$7)),C146,$F$8),0) -> 0.01294136773 | D147: 0 | E147: 899.9854411
A148: 134 | B148: 0 | C148: =IF(A148>$F$7+$B$6,ArrFlow_j(INDIRECT("b"&ROW()-INT($F$7)),C147,$F$8),0) -> 0.005286064794 | D148: 0 | E148: 899.9940532
A149: 135 | B149: 0 | C149: =IF(A149>$F$7+$B$6,ArrFlow_j(INDIRECT("b"&ROW()-INT($F$7)),C148,$F$8),0) -> 0.002159159803 | D149: 0 | E149: 899.997571
A150: 136 | B150: 0 | C150: =IF(A150>$F$7+$B$6,ArrFlow_j(INDIRECT("b"&ROW()-INT($F$7)),C149,$F$8),0) -> 0.0008819360409 | D150: 0 | E150: 899.9990078
A151: 137 | B151: 0 | C151: =IF(A151>$F$7+$B$6,ArrFlow_j(INDIRECT("b"&ROW()-INT($F$7)),C150,$F$8),0) -> 0.0003602378939 | D151: 0 | E151: 899.9995946
A152: 138 | B152: 0 | C152: =IF(A152>$F$7+$B$6,ArrFlow_j(INDIRECT("b"&ROW()-INT($F$7)),C151,$F$8),0) -> 0.0001471437091 | D152: 0 | E152: 899.9998345
A153: 139 | B153: 0 | C153: =IF(A153>$F$7+$B$6,ArrFlow_j(INDIRECT("b"&ROW()-INT($F$7)),C152,$F$8),0) -> 6.010270292e-05 | D153: 0 | E153: 899.9999323
A154: 140 | B154: 0 | C154: =IF(A154>$F$7+$B$6,ArrFlow_j(INDIRECT("b"&ROW()-INT($F$7)),C153,$F$8),0) -> 2.454970669e-05 | D154: 0 | E154: 899.9999718
A155: 141 | B155: 0 | C155: =IF(A155>$F$7+$B$6,ArrFlow_j(INDIRECT("b"&ROW()-INT($F$7)),C154,$F$8),0) -> 1.002763718e-05 | D155: 0 | E155: 899.9999889
A156: 142 | B156: 0 | C156: =IF(A156>$F$7+$B$6,ArrFlow_j(INDIRECT("b"&ROW()-INT($F$7)),C155,$F$8),0) -> 4.095914818e-06 | D156: 0 | E156: 899.9999957
A157: 143 | B157: 0 | C157: =IF(A157>$F$7+$B$6,ArrFlow_j(INDIRECT("b"&ROW()-INT($F$7)),C156,$F$8),0) -> 1.673028042e-06 | D157: 0 | E157: 900.0000112
A158: 144 | B158: 0 | C158: =IF(A158>$F$7+$B$6,ArrFlow_j(INDIRECT("b"&ROW()-INT($F$7)),C157,$F$8),0) -> 6.833693946e-07 | D158: 0 | E158: 900.000043
A159: 145 | B159: 0 | C159: =IF(A159>$F$7+$B$6,ArrFlow_j(INDIRECT("b"&ROW()-INT($F$7)),C158,$F$8),0) -> 2.791308441e-07 | D159: 0 | E159: 900.0000821
A160: 146 | B160: 0 | C160: =IF(A160>$F$7+$B$6,ArrFlow_j(INDIRECT("b"&ROW()-INT($F$7)),C159,$F$8),0) -> 1.140145121e-07 | D160: 0 | E160: 900.0001122
A161: 147 | B161: 0 | C161: =IF(A161>$F$7+$B$6,ArrFlow_j(INDIRECT("b"&ROW()-INT($F$7)),C160,$F$8),0) -> 4.657066477e-08 | D161: 0 | E161: 900.0003368
A162: 148 | B162: 0 | C162: =IF(A162>$F$7+$B$6,ArrFlow_j(INDIRECT("b"&ROW()-INT($F$7)),C161,$F$8),0) -> 1.902237511e-08 | D162: 0 | E162: 899.9995952
A163: 149 | B163: 0 | C163: =IF(A163>$F$7+$B$6,ArrFlow_j(INDIRECT("b"&ROW()-INT($F$7)),C162,$F$8),0) -> 7.769928919e-09 | D163: 0 | E163: 900.0051178
A164: 150 | B164: 1800 | C164: =IF(A164>$F$7+$B$6,ArrFlow_j(INDIRECT("b"&ROW()-INT($F$7)),C163,$F$8),0) -> 3.173725418e-09 | D164: 0 | E164: 899.9898377
A165: 151 | B165: 1800 | C165: =IF(A165>$F$7+$B$6,ArrFlow_j(INDIRECT("b"&ROW()-INT($F$7)),C164,$F$8),0) -> 1.296348156e-09 | D165: 0 | E165: 899.9896828
A166: 152 | B166: 1800 | C166: =IF(A166>$F$7+$B$6,ArrFlow_j(INDIRECT("b"&ROW()-INT($F$7)),C165,$F$8),0) -> 1064.767309 | D166: 1 | E166: 0
A167: 153 | B167: 1800 | C167: =IF(A167>$F$7+$B$6,ArrFlow_j(INDIRECT("b"&ROW()-INT($F$7)),C166,$F$8),0) -> 1499.684939 | D167: 1 | E167: 0
A168: 154 | B168: 1800 | C168: =IF(A168>$F$7+$B$6,ArrFlow_j(INDIRECT("b"&ROW()-INT($F$7)),C167,$F$8),0) -> 1677.332527 | D168: 1 | E168: 0
A169: 155 | B169: 1800 | C169: =IF(A169>$F$7+$B$6,ArrFlow_j(INDIRECT("b"&ROW()-INT($F$7)),C168,$F$8),0) -> 1749.894924 | D169: 1 | E169: 0
A170: 156 | B170: 1800 | C170: =IF(A170>$F$7+$B$6,ArrFlow_j(INDIRECT("b"&ROW()-INT($F$7)),C169,$F$8),0) -> 1779.53395 | D170: 1 | E170: 0
A171: 157 | B171: 1800 | C171: =IF(A171>$F$7+$B$6,ArrFlow_j(INDIRECT("b"&ROW()-INT($F$7)),C170,$F$8),0) -> 1791.640384 | D171: 1 | E171: 0
A172: 158 | B172: 1800 | C172: =IF(A172>$F$7+$B$6,ArrFlow_j(INDIRECT("b"&ROW()-INT($F$7)),C171,$F$8),0) -> 1796.585409 | D172: 1 | E172: 0
A173: 159 | B173: 1800 | C173: =IF(A173>$F$7+$B$6,ArrFlow_j(INDIRECT("b"&ROW()-INT($F$7)),C172,$F$8),0) -> 1798.605267 | D173: 1 | E173: 0
A174: 160 | B174: 1800 | C174: =IF(A174>$F$7+$B$6,ArrFlow_j(INDIRECT("b"&ROW()-INT($F$7)),C173,$F$8),0) -> 1799.430304 | D174: 1 | E174: 0
A175: 161 | B175: 1800 | C175: =IF(A175>$F$7+$B$6,ArrFlow_j(INDIRECT("b"&ROW()-INT($F$7)),C174,$F$8),0) -> 1799.7673 | D175: 1 | E175: 0
A176: 162 | B176: 1800 | C176: =IF(A176>$F$7+$B$6,ArrFlow_j(INDIRECT("b"&ROW()-INT($F$7)),C175,$F$8),0) -> 1799.904951 | D176: 1 | E176: 0
A177: 163 | B177: 1800 | C177: =IF(A177>$F$7+$B$6,ArrFlow_j(INDIRECT("b"&ROW()-INT($F$7)),C176,$F$8),0) -> 1799.961176 | D177: 1 | E177: 0
A178: 164 | B178: 1800 | C178: =IF(A178>$F$7+$B$6,ArrFlow_j(INDIRECT("b"&ROW()-INT($F$7)),C177,$F$8),0) -> 1799.984142 | D178: 1 | E178: 0
A179: 165 | B179: 600 | C179: =IF(A179>$F$7+$B$6,ArrFlow_j(INDIRECT("b"&ROW()-INT($F$7)),C178,$F$8),0) -> 1799.993523 | D179: 1 | E179: 0
A180: 166 | B180: 600 | C180: =IF(A180>$F$7+$B$6,ArrFlow_j(INDIRECT("b"&ROW()-INT($F$7)),C179,$F$8),0) -> 1799.997354 | D180: 1 | E180: 0
A181: 167 | B181: 600 | C181: =IF(A181>$F$7+$B$6,ArrFlow_j(INDIRECT("b"&ROW()-INT($F$7)),C180,$F$8),0) -> 1090.154047 | D181: 1 | E181: 0
A182: 168 | B182: 600 | C182: =IF(A182>$F$7+$B$6,ArrFlow_j(INDIRECT("b"&ROW()-INT($F$7)),C181,$F$8),0) -> 800.2095995 | D182: 1 | E182: 0
A183: 169 | B183: 600 | C183: =IF(A183>$F$7+$B$6,ArrFlow_j(INDIRECT("b"&ROW()-INT($F$7)),C182,$F$8),0) -> 681.7781349 | D183: 1 | E183: 0
A184: 170 | B184: 600 | C184: =IF(A184>$F$7+$B$6,ArrFlow_j(INDIRECT("b"&ROW()-INT($F$7)),C183,$F$8),0) -> 633.4033101 | D184: 1 | E184: 0
A185: 171 | B185: 600 | C185: =IF(A185>$F$7+$B$6,ArrFlow_j(INDIRECT("b"&ROW()-INT($F$7)),C184,$F$8),0) -> 613.6440031 | D185: 1 | E185: 0
A186: 172 | B186: 600 | C186: =IF(A186>$F$7+$B$6,ArrFlow_j(INDIRECT("b"&ROW()-INT($F$7)),C185,$F$8),0) -> 605.5730651 | D186: 1 | E186: 0
A187: 173 | B187: 600 | C187: =IF(A187>$F$7+$B$6,ArrFlow_j(INDIRECT("b"&ROW()-INT($F$7)),C186,$F$8),0) -> 602.2763887 | D187: 1 | E187: 0
A188: 174 | B188: 600 | C188: =IF(A188>$F$7+$B$6,ArrFlow_j(INDIRECT("b"&ROW()-INT($F$7)),C187,$F$8),0) -> 600.9298197 | D188: 1 | E188: 0
A189: 175 | B189: 600 | C189: =IF(A189>$F$7+$B$6,ArrFlow_j(INDIRECT("b"&ROW()-INT($F$7)),C188,$F$8),0) -> 600.3797966 | D189: 1 | E189: 0
A190: 176 | B190: 600 | C190: =IF(A190>$F$7+$B$6,ArrFlow_j(INDIRECT("b"&ROW()-INT($F$7)),C189,$F$8),0) -> 600.1551327 | D190: 1 | E190: 0
A191: 177 | B191: 600 | C191: =IF(A191>$F$7+$B$6,ArrFlow_j(INDIRECT("b"&ROW()-INT($F$7)),C190,$F$8),0) -> 600.0633659 | D191: 1 | E191: 0
A192: 178 | B192: 600 | C192: =IF(A192>$F$7+$B$6,ArrFlow_j(INDIRECT("b"&ROW()-INT($F$7)),C191,$F$8),0) -> 600.0258826 | D192: 1 | E192: 0
A193: 179 | B193: 600 | C193: =IF(A193>$F$7+$B$6,ArrFlow_j(INDIRECT("b"&ROW()-INT($F$7)),C192,$F$8),0) -> 600.0105721 | D193: 1 | E193: 0
A194: 180 | B194: 0 | C194: =IF(A194>$F$7+$B$6,ArrFlow_j(INDIRECT("b"&ROW()-INT($F$7)),C193,$F$8),0) -> 600.0043183 | D194: 1 | E194: 0
A195: 181 | B195: 0 | C195: =IF(A195>$F$7+$B$6,ArrFlow_j(INDIRECT("b"&ROW()-INT($F$7)),C194,$F$8),0) -> 600.0017639 | D195: 1 | E195: 0
A196: 182 | B196: 0 | C196: =IF(A196>$F$7+$B$6,ArrFlow_j(INDIRECT("b"&ROW()-INT($F$7)),C195,$F$8),0) -> 245.0782843 | D196: 0 | E196: 660.4749092
A197: 183 | B197: 0 | C197: =IF(A197>$F$7+$B$6,ArrFlow_j(INDIRECT("b"&ROW()-INT($F$7)),C196,$F$8),0) -> 100.1053148 | D197: 0 | E197: 793.7334389
A198: 184 | B198: 0 | C198: =IF(A198>$F$7+$B$6,ArrFlow_j(INDIRECT("b"&ROW()-INT($F$7)),C197,$F$8),0) -> 40.88927779 | D198: 0 | E198: 855.0818222
A199: 185 | B199: 0 | C199: =IF(A199>$F$7+$B$6,ArrFlow_j(INDIRECT("b"&ROW()-INT($F$7)),C198,$F$8),0) -> 16.70174098 | D199: 0 | E199: 881.3926717
A200: 186 | B200: 0 | C200: =IF(A200>$F$7+$B$6,ArrFlow_j(INDIRECT("b"&ROW()-INT($F$7)),C199,$F$8),0) -> 6.822036651 | D200: 0 | E200: 892.3557032
A201: 187 | B201: 0 | C201: =IF(A201>$F$7+$B$6,ArrFlow_j(INDIRECT("b"&ROW()-INT($F$7)),C200,$F$8),0) -> 2.786546871 | D201: 0 | E201: 896.8702299
A202: 188 | B202: 0 | C202: =IF(A202>$F$7+$B$6,ArrFlow_j(INDIRECT("b"&ROW()-INT($F$7)),C201,$F$8),0) -> 1.138200198 | D202: 0 | E202: 898.7203754
A203: 189 | B203: 0 | C203: =IF(A203>$F$7+$B$6,ArrFlow_j(INDIRECT("b"&ROW()-INT($F$7)),C202,$F$8),0) -> 0.4649122194 | D203: 0 | E203: 899.4771157
... 11 more rows

Sheet d=500
A1: Flow Profile at downstream signal (minor TH movement)
A3: Given Data | E3: Robertson Model | I3: Movement | J3: tc | K3: tf | M3: Summary | N3: Cap | O3: Distance | P3: Blocked | R3: ConFlow-Option 3 | U3: Capacity Options | Z3: Analysis of one cycle period (t=42-101)
A4: C | B4: 60 | C4: sec | E4: Distance | F4: 500 | G4: ft | I4: MajorLT | J4: 4.1 | K4: 2.2 | M4: GapCap | N4: =(INT((B4-B9-J6)/K6)+1)*(3600/B4) -> 600 | R4: ConFlow | S4: =SUM(C56:C115)/60 -> 579.3966813 | U4: Option | V4: CapFlow | W4: PropBlocked
A5: G | B5: 30 | C5: sec | E5: Speed | F5: 25 | G5: mi/hr | I5: MinorRT | J5: 6.2 | K5: 3.3 | M5: c random | N5: =PotCap(B8,J6,K6,0) -> 417.3579939 | U5: 3 | V5: =PotCap(S4,J6,K6,0) -> 428.7781353
A6: R | B6: =B4-B5 -> 30 | C6: sec | E6: tR | F6: =(F4)/(1.47*F5) -> 13.60544218 | G6: sec | I6: MinorTH | J6: 6.5 | K6: 4 | R6: Critical flow line | U6: 4 | V6: =AVERAGE(E56:E115) -> 428.3474613
A7: SatFlow | B7: 1800 | C7: veh/hr-g | E7: tprime | F7: =tprime(F6,F8) -> 11.66289116 | G7: sec | I7: MinorLT | J7: 7.1 | K7: 3.5 | S7: =3600/$J$6 -> 553.8461538 | T7: 42
A8: ArrFlow | B8: 600 | C8: veh/hr | E8: F | F8: =F(F6) -> 0.3132291367 | S8: =3600/$J$6 -> 553.8461538 | T8: 111
A9: gq | B9: =(B8*B6)/(B7-B8) -> 15 | C9: sec
A10: gu | B10: =B5-B9 -> 15 | C10: sec
A13: Time i | B13: DepFlowi | C13: ArrFlowj | D13: Blocked? | E13: PotCapGap
A14: 0 | B14: =DepFlowi($B$9,$B$5,$B$4,$B$8,$B$7,A14) -> 0 | C14: =IF(A14>$F$7+$B$6,ArrFlow_j(INDIRECT("b"&ROW()-INT($F$7)),C13,$F$8),0) -> 0 | D14: =IF(C14>(3600/$J$6),1,0) -> 0 | E14: =IF(A14>$B$6+$F$7,PotCap(C14,$J$6,$K$6,D14),"") -> 
A15: 1 | B15: 0 | C15: =IF(A15>$F$7+$B$6,ArrFlow_j(INDIRECT("b"&ROW()-INT($F$7)),C14,$F$8),0) -> 0 | D15: =IF(C15>(3600/$J$6),1,0) -> 0
A16: 2 | B16: 0 | C16: =IF(A16>$F$7+$B$6,ArrFlow_j(INDIRECT("b"&ROW()-INT($F$7)),C15,$F$8),0) -> 0 | D16: 0
A17: 3 | B17: 0 | C17: =IF(A17>$F$7+$B$6,ArrFlow_j(INDIRECT("b"&ROW()-INT($F$7)),C16,$F$8),0) -> 0 | D17: 0
A18: 4 | B18: 0 | C18: =IF(A18>$F$7+$B$6,ArrFlow_j(INDIRECT("b"&ROW()-INT($F$7)),C17,$F$8),0) -> 0 | D18: 0
A19: 5 | B19: 0 | C19: =IF(A19>$F$7+$B$6,ArrFlow_j(INDIRECT("b"&ROW()-INT($F$7)),C18,$F$8),0) -> 0 | D19: 0
A20: 6 | B20: 0 | C20: =IF(A20>$F$7+$B$6,ArrFlow_j(INDIRECT("b"&ROW()-INT($F$7)),C19,$F$8),0) -> 0 | D20: 0
A21: 7 | B21: 0 | C21: =IF(A21>$F$7+$B$6,ArrFlow_j(INDIRECT("b"&ROW()-INT($F$7)),C20,$F$8),0) -> 0 | D21: 0
A22: 8 | B22: 0 | C22: =IF(A22>$F$7+$B$6,ArrFlow_j(INDIRECT("b"&ROW()-INT($F$7)),C21,$F$8),0) -> 0 | D22: 0
A23: 9 | B23: 0 | C23: =IF(A23>$F$7+$B$6,ArrFlow_j(INDIRECT("b"&ROW()-INT($F$7)),C22,$F$8),0) -> 0 | D23: 0
A24: 10 | B24: 0 | C24: =IF(A24>$F$7+$B$6,ArrFlow_j(INDIRECT("b"&ROW()-INT($F$7)),C23,$F$8),0) -> 0 | D24: 0
A25: 11 | B25: 0 | C25: =IF(A25>$F$7+$B$6,ArrFlow_j(INDIRECT("b"&ROW()-INT($F$7)),C24,$F$8),0) -> 0 | D25: 0
A26: 12 | B26: 0 | C26: =IF(A26>$F$7+$B$6,ArrFlow_j(INDIRECT("b"&ROW()-INT($F$7)),C25,$F$8),0) -> 0 | D26: 0
A27: 13 | B27: 0 | C27: =IF(A27>$F$7+$B$6,ArrFlow_j(INDIRECT("b"&ROW()-INT($F$7)),C26,$F$8),0) -> 0 | D27: 0
A28: 14 | B28: 0 | C28: =IF(A28>$F$7+$B$6,ArrFlow_j(INDIRECT("b"&ROW()-INT($F$7)),C27,$F$8),0) -> 0 | D28: 0
A29: 15 | B29: 0 | C29: =IF(A29>$F$7+$B$6,ArrFlow_j(INDIRECT("b"&ROW()-INT($F$7)),C28,$F$8),0) -> 0 | D29: 0
A30: 16 | B30: 0 | C30: =IF(A30>$F$7+$B$6,ArrFlow_j(INDIRECT("b"&ROW()-INT($F$7)),C29,$F$8),0) -> 0 | D30: 0
A31: 17 | B31: 0 | C31: =IF(A31>$F$7+$B$6,ArrFlow_j(INDIRECT("b"&ROW()-INT($F$7)),C30,$F$8),0) -> 0 | D31: 0
A32: 18 | B32: 0 | C32: =IF(A32>$F$7+$B$6,ArrFlow_j(INDIRECT("b"&ROW()-INT($F$7)),C31,$F$8),0) -> 0 | D32: 0
A33: 19 | B33: 0 | C33: =IF(A33>$F$7+$B$6,ArrFlow_j(INDIRECT("b"&ROW()-INT($F$7)),C32,$F$8),0) -> 0 | D33: 0
A34: 20 | B34: 0 | C34: =IF(A34>$F$7+$B$6,ArrFlow_j(INDIRECT("b"&ROW()-INT($F$7)),C33,$F$8),0) -> 0 | D34: 0
A35: 21 | B35: 0 | C35: =IF(A35>$F$7+$B$6,ArrFlow_j(INDIRECT("b"&ROW()-INT($F$7)),C34,$F$8),0) -> 0 | D35: 0
A36: 22 | B36: 0 | C36: =IF(A36>$F$7+$B$6,ArrFlow_j(INDIRECT("b"&ROW()-INT($F$7)),C35,$F$8),0) -> 0 | D36: 0
A37: 23 | B37: 0 | C37: =IF(A37>$F$7+$B$6,ArrFlow_j(INDIRECT("b"&ROW()-INT($F$7)),C36,$F$8),0) -> 0 | D37: 0
A38: 24 | B38: 0 | C38: =IF(A38>$F$7+$B$6,ArrFlow_j(INDIRECT("b"&ROW()-INT($F$7)),C37,$F$8),0) -> 0 | D38: 0
A39: 25 | B39: 0 | C39: =IF(A39>$F$7+$B$6,ArrFlow_j(INDIRECT("b"&ROW()-INT($F$7)),C38,$F$8),0) -> 0 | D39: 0
A40: 26 | B40: 0 | C40: =IF(A40>$F$7+$B$6,ArrFlow_j(INDIRECT("b"&ROW()-INT($F$7)),C39,$F$8),0) -> 0 | D40: 0
A41: 27 | B41: 0 | C41: =IF(A41>$F$7+$B$6,ArrFlow_j(INDIRECT("b"&ROW()-INT($F$7)),C40,$F$8),0) -> 0 | D41: 0
A42: 28 | B42: 0 | C42: =IF(A42>$F$7+$B$6,ArrFlow_j(INDIRECT("b"&ROW()-INT($F$7)),C41,$F$8),0) -> 0 | D42: 0
A43: 29 | B43: 0 | C43: =IF(A43>$F$7+$B$6,ArrFlow_j(INDIRECT("b"&ROW()-INT($F$7)),C42,$F$8),0) -> 0 | D43: 0
A44: 30 | B44: 1800 | C44: =IF(A44>$F$7+$B$6,ArrFlow_j(INDIRECT("b"&ROW()-INT($F$7)),C43,$F$8),0) -> 0 | D44: 0
A45: 31 | B45: 1800 | C45: =IF(A45>$F$7+$B$6,ArrFlow_j(INDIRECT("b"&ROW()-INT($F$7)),C44,$F$8),0) -> 0 | D45: 0
A46: 32 | B46: 1800 | C46: =IF(A46>$F$7+$B$6,ArrFlow_j(INDIRECT("b"&ROW()-INT($F$7)),C45,$F$8),0) -> 0 | D46: 0
A47: 33 | B47: 1800 | C47: =IF(A47>$F$7+$B$6,ArrFlow_j(INDIRECT("b"&ROW()-INT($F$7)),C46,$F$8),0) -> 0 | D47: 0
A48: 34 | B48: 1800 | C48: =IF(A48>$F$7+$B$6,ArrFlow_j(INDIRECT("b"&ROW()-INT($F$7)),C47,$F$8),0) -> 0 | D48: 0
A49: 35 | B49: 1800 | C49: =IF(A49>$F$7+$B$6,ArrFlow_j(INDIRECT("b"&ROW()-INT($F$7)),C48,$F$8),0) -> 0 | D49: 0
A50: 36 | B50: 1800 | C50: =IF(A50>$F$7+$B$6,ArrFlow_j(INDIRECT("b"&ROW()-INT($F$7)),C49,$F$8),0) -> 0 | D50: 0
A51: 37 | B51: 1800 | C51: =IF(A51>$F$7+$B$6,ArrFlow_j(INDIRECT("b"&ROW()-INT($F$7)),C50,$F$8),0) -> 0 | D51: 0
A52: 38 | B52: 1800 | C52: =IF(A52>$F$7+$B$6,ArrFlow_j(INDIRECT("b"&ROW()-INT($F$7)),C51,$F$8),0) -> 0 | D52: 0
A53: 39 | B53: 1800 | C53: =IF(A53>$F$7+$B$6,ArrFlow_j(INDIRECT("b"&ROW()-INT($F$7)),C52,$F$8),0) -> 0 | D53: 0
A54: 40 | B54: 1800 | C54: =IF(A54>$F$7+$B$6,ArrFlow_j(INDIRECT("b"&ROW()-INT($F$7)),C53,$F$8),0) -> 0 | D54: 0
A55: 41 | B55: 1800 | C55: =IF(A55>$F$7+$B$6,ArrFlow_j(INDIRECT("b"&ROW()-INT($F$7)),C54,$F$8),0) -> 0 | D55: 0
A56: 42 | B56: 1800 | C56: =IF(A56>$F$7+$B$6,ArrFlow_j(INDIRECT("b"&ROW()-INT($F$7)),C55,$F$8),0) -> 563.8124461 | D56: 1 | E56: 0
A57: 43 | B57: 1800 | C57: =IF(A57>$F$7+$B$6,ArrFlow_j(INDIRECT("b"&ROW()-INT($F$7)),C56,$F$8),0) -> 951.0224064 | D57: 1 | E57: 0
A58: 44 | B58: 1800 | C58: =IF(A58>$F$7+$B$6,ArrFlow_j(INDIRECT("b"&ROW()-INT($F$7)),C57,$F$8),0) -> 1216.946925 | D58: 1 | E58: 0
A59: 45 | B59: 600 | C59: =IF(A59>$F$7+$B$6,ArrFlow_j(INDIRECT("b"&ROW()-INT($F$7)),C58,$F$8),0) -> 1399.576136 | D59: 1 | E59: 0
A60: 46 | B60: 600 | C60: =IF(A60>$F$7+$B$6,ArrFlow_j(INDIRECT("b"&ROW()-INT($F$7)),C59,$F$8),0) -> 1525.000558 | D60: 1 | E60: 0
A61: 47 | B61: 600 | C61: =IF(A61>$F$7+$B$6,ArrFlow_j(INDIRECT("b"&ROW()-INT($F$7)),C60,$F$8),0) -> 1611.138395 | D61: 1 | E61: 0
A62: 48 | B62: 600 | C62: =IF(A62>$F$7+$B$6,ArrFlow_j(INDIRECT("b"&ROW()-INT($F$7)),C61,$F$8),0) -> 1670.295353 | D62: 1 | E62: 0
A63: 49 | B63: 600 | C63: =IF(A63>$F$7+$B$6,ArrFlow_j(INDIRECT("b"&ROW()-INT($F$7)),C62,$F$8),0) -> 1710.922627 | D63: 1 | E63: 0
A64: 50 | B64: 600 | C64: =IF(A64>$F$7+$B$6,ArrFlow_j(INDIRECT("b"&ROW()-INT($F$7)),C63,$F$8),0) -> 1738.824256 | D64: 1 | E64: 0
A65: 51 | B65: 600 | C65: =IF(A65>$F$7+$B$6,ArrFlow_j(INDIRECT("b"&ROW()-INT($F$7)),C64,$F$8),0) -> 1757.986281 | D65: 1 | E65: 0
A66: 52 | B66: 600 | C66: =IF(A66>$F$7+$B$6,ArrFlow_j(INDIRECT("b"&ROW()-INT($F$7)),C65,$F$8),0) -> 1771.146202 | D66: 1 | E66: 0
A67: 53 | B67: 600 | C67: =IF(A67>$F$7+$B$6,ArrFlow_j(INDIRECT("b"&ROW()-INT($F$7)),C66,$F$8),0) -> 1780.184052 | D67: 1 | E67: 0
A68: 54 | B68: 600 | C68: =IF(A68>$F$7+$B$6,ArrFlow_j(INDIRECT("b"&ROW()-INT($F$7)),C67,$F$8),0) -> 1786.390985 | D68: 1 | E68: 0
A69: 55 | B69: 600 | C69: =IF(A69>$F$7+$B$6,ArrFlow_j(INDIRECT("b"&ROW()-INT($F$7)),C68,$F$8),0) -> 1790.653725 | D69: 1 | E69: 0
A70: 56 | B70: 600 | C70: =IF(A70>$F$7+$B$6,ArrFlow_j(INDIRECT("b"&ROW()-INT($F$7)),C69,$F$8),0) -> 1417.706286 | D70: 1 | E70: 0
A71: 57 | B71: 600 | C71: =IF(A71>$F$7+$B$6,ArrFlow_j(INDIRECT("b"&ROW()-INT($F$7)),C70,$F$8),0) -> 1161.576852 | D71: 1 | E71: 0
A72: 58 | B72: 600 | C72: =IF(A72>$F$7+$B$6,ArrFlow_j(INDIRECT("b"&ROW()-INT($F$7)),C71,$F$8),0) -> 985.6746196 | D72: 1 | E72: 0
A73: 59 | B73: 600 | C73: =IF(A73>$F$7+$B$6,ArrFlow_j(INDIRECT("b"&ROW()-INT($F$7)),C72,$F$8),0) -> 864.8700915 | D73: 1 | E73: 0
A74: 60 | B74: 0 | C74: =IF(A74>$F$7+$B$6,ArrFlow_j(INDIRECT("b"&ROW()-INT($F$7)),C73,$F$8),0) -> 781.9050614 | D74: 1 | E74: 0
A75: 61 | B75: 0 | C75: =IF(A75>$F$7+$B$6,ArrFlow_j(INDIRECT("b"&ROW()-INT($F$7)),C74,$F$8),0) -> 724.927096 | D75: 1 | E75: 0
A76: 62 | B76: 0 | C76: =IF(A76>$F$7+$B$6,ArrFlow_j(INDIRECT("b"&ROW()-INT($F$7)),C75,$F$8),0) -> 685.7962896 | D76: 1 | E76: 0
A77: 63 | B77: 0 | C77: =IF(A77>$F$7+$B$6,ArrFlow_j(INDIRECT("b"&ROW()-INT($F$7)),C76,$F$8),0) -> 658.9223919 | D77: 1 | E77: 0
A78: 64 | B78: =DepFlowi($B$9,$B$5,$B$4,$B$8,$B$7,A78) -> 0 | C78: =IF(A78>$F$7+$B$6,ArrFlow_j(INDIRECT("b"&ROW()-INT($F$7)),C77,$F$8),0) -> 640.4661819 | D78: 1 | E78: =IF(A78>$B$6+$F$7,PotCap(C78,$J$6,$K$6,D78),"") -> 0
A79: 65 | B79: 0 | C79: =IF(A79>$F$7+$B$6,ArrFlow_j(INDIRECT("b"&ROW()-INT($F$7)),C78,$F$8),0) -> 627.7909947 | D79: =IF(C79>(3600/$J$6),1,0) -> 1 | E79: 0
A80: 66 | B80: 0 | C80: =IF(A80>$F$7+$B$6,ArrFlow_j(INDIRECT("b"&ROW()-INT($F$7)),C79,$F$8),0) -> 619.0860454 | D80: 1 | E80: 0
A81: 67 | B81: 0 | C81: =IF(A81>$F$7+$B$6,ArrFlow_j(INDIRECT("b"&ROW()-INT($F$7)),C80,$F$8),0) -> 613.1077399 | D81: 1 | E81: 0
A82: 68 | B82: 0 | C82: =IF(A82>$F$7+$B$6,ArrFlow_j(INDIRECT("b"&ROW()-INT($F$7)),C81,$F$8),0) -> 609.0020138 | D82: 1 | E82: 0
A83: 69 | B83: 0 | C83: =IF(A83>$F$7+$B$6,ArrFlow_j(INDIRECT("b"&ROW()-INT($F$7)),C82,$F$8),0) -> 606.1823208 | D83: 1 | E83: 0
A84: 70 | B84: 0 | C84: =IF(A84>$F$7+$B$6,ArrFlow_j(INDIRECT("b"&ROW()-INT($F$7)),C83,$F$8),0) -> 604.2458378 | D84: 1 | E84: 0
A85: 71 | B85: 0 | C85: =IF(A85>$F$7+$B$6,ArrFlow_j(INDIRECT("b"&ROW()-INT($F$7)),C84,$F$8),0) -> 414.9784357 | D85: 0 | E85: 531.0355511
A86: 72 | B86: 0 | C86: =IF(A86>$F$7+$B$6,ArrFlow_j(INDIRECT("b"&ROW()-INT($F$7)),C85,$F$8),0) -> 284.9950985 | D86: 0 | E86: 627.6459784
A87: 73 | B87: 0 | C87: =IF(A87>$F$7+$B$6,ArrFlow_j(INDIRECT("b"&ROW()-INT($F$7)),C86,$F$8),0) -> 195.7263298 | D87: 0 | E87: 703.2883722
A88: 74 | B88: 0 | C88: =IF(A88>$F$7+$B$6,ArrFlow_j(INDIRECT("b"&ROW()-INT($F$7)),C87,$F$8),0) -> 134.4191405 | D88: 0 | E88: 760.0935825
A89: 75 | B89: 0 | C89: =IF(A89>$F$7+$B$6,ArrFlow_j(INDIRECT("b"&ROW()-INT($F$7)),C88,$F$8),0) -> 92.31514918 | D89: 0 | E89: 801.5621301
A90: 76 | B90: 0 | C90: =IF(A90>$F$7+$B$6,ArrFlow_j(INDIRECT("b"&ROW()-INT($F$7)),C89,$F$8),0) -> 63.3993547 | D90: 0 | E90: 831.2568356
A91: 77 | B91: 0 | C91: =IF(A91>$F$7+$B$6,ArrFlow_j(INDIRECT("b"&ROW()-INT($F$7)),C90,$F$8),0) -> 43.54082956 | D91: 0 | E91: 852.2425825
A92: 78 | B92: 0 | C92: =IF(A92>$F$7+$B$6,ArrFlow_j(INDIRECT("b"&ROW()-INT($F$7)),C91,$F$8),0) -> 29.9025731 | D92: 0 | E92: 866.9406771
A93: 79 | B93: 0 | C93: =IF(A93>$F$7+$B$6,ArrFlow_j(INDIRECT("b"&ROW()-INT($F$7)),C92,$F$8),0) -> 20.53621595 | D93: 0 | E93: 877.1717394
A94: 80 | B94: 0 | C94: =IF(A94>$F$7+$B$6,ArrFlow_j(INDIRECT("b"&ROW()-INT($F$7)),C93,$F$8),0) -> 14.10367475 | D94: 0 | E94: 884.2633608
A95: 81 | B95: 0 | C95: =IF(A95>$F$7+$B$6,ArrFlow_j(INDIRECT("b"&ROW()-INT($F$7)),C94,$F$8),0) -> 9.685992886 | D95: 0 | E95: 889.1646675
A96: 82 | B96: 0 | C96: =IF(A96>$F$7+$B$6,ArrFlow_j(INDIRECT("b"&ROW()-INT($F$7)),C95,$F$8),0) -> 6.652057696 | D96: 0 | E96: 892.5454306
A97: 83 | B97: 0 | C97: =IF(A97>$F$7+$B$6,ArrFlow_j(INDIRECT("b"&ROW()-INT($F$7)),C96,$F$8),0) -> 4.568439407 | D97: 0 | E97: 894.8741917
A98: 84 | B98: 0 | C98: =IF(A98>$F$7+$B$6,ArrFlow_j(INDIRECT("b"&ROW()-INT($F$7)),C97,$F$8),0) -> 3.137471075 | D98: 0 | E98: 896.4768034
A99: 85 | B99: 0 | C99: =IF(A99>$F$7+$B$6,ArrFlow_j(INDIRECT("b"&ROW()-INT($F$7)),C98,$F$8),0) -> 2.154723719 | D99: 0 | E99: 897.578983
A100: 86 | B100: 0 | C100: =IF(A100>$F$7+$B$6,ArrFlow_j(INDIRECT("b"&ROW()-INT($F$7)),C99,$F$8),0) -> 1.479801469 | D100: 0 | E100: 898.3366609
A101: 87 | B101: 0 | C101: =IF(A101>$F$7+$B$6,ArrFlow_j(INDIRECT("b"&ROW()-INT($F$7)),C100,$F$8),0) -> 1.016284532 | D101: 0 | E101: 898.857358
A102: 88 | B102: 0 | C102: =IF(A102>$F$7+$B$6,ArrFlow_j(INDIRECT("b"&ROW()-INT($F$7)),C101,$F$8),0) -> 0.6979546055 | D102: 0 | E102: 899.215121
A103: 89 | B103: 0 | C103: =IF(A103>$F$7+$B$6,ArrFlow_j(INDIRECT("b"&ROW()-INT($F$7)),C102,$F$8),0) -> 0.479334887 | D103: 0 | E103: 899.4608991
A104: 90 | B104: 1800 | C104: =IF(A104>$F$7+$B$6,ArrFlow_j(INDIRECT("b"&ROW()-INT($F$7)),C103,$F$8),0) -> 0.3291932341 | D104: 0 | E104: 899.6297288
A105: 91 | B105: 1800 | C105: =IF(A105>$F$7+$B$6,ArrFlow_j(INDIRECT("b"&ROW()-INT($F$7)),C104,$F$8),0) -> 0.2260803216 | D105: 0 | E105: 899.7456932
A106: 92 | B106: 1800 | C106: =IF(A106>$F$7+$B$6,ArrFlow_j(INDIRECT("b"&ROW()-INT($F$7)),C105,$F$8),0) -> 0.1552653776 | D106: 0 | E106: 899.8253423
A107: 93 | B107: 1800 | C107: =IF(A107>$F$7+$B$6,ArrFlow_j(INDIRECT("b"&ROW()-INT($F$7)),C106,$F$8),0) -> 0.1066317374 | D107: 0 | E107: 899.8800468
A108: 94 | B108: 1800 | C108: =IF(A108>$F$7+$B$6,ArrFlow_j(INDIRECT("b"&ROW()-INT($F$7)),C107,$F$8),0) -> 0.07323157037 | D108: 0 | E108: 899.917618
A109: 95 | B109: 1800 | C109: =IF(A109>$F$7+$B$6,ArrFlow_j(INDIRECT("b"&ROW()-INT($F$7)),C108,$F$8),0) -> 0.05029330881 | D109: 0 | E109: 899.9434217
A110: 96 | B110: 1800 | C110: =IF(A110>$F$7+$B$6,ArrFlow_j(INDIRECT("b"&ROW()-INT($F$7)),C109,$F$8),0) -> 0.03453997911 | D110: 0 | E110: 899.9611433
A111: 97 | B111: 1800 | C111: =IF(A111>$F$7+$B$6,ArrFlow_j(INDIRECT("b"&ROW()-INT($F$7)),C110,$F$8),0) -> 0.02372105127 | D111: 0 | E111: 899.9733142
A112: 98 | B112: 1800 | C112: =IF(A112>$F$7+$B$6,ArrFlow_j(INDIRECT("b"&ROW()-INT($F$7)),C111,$F$8),0) -> 0.01629092686 | D112: 0 | E112: 899.9816729
A113: 99 | B113: 1800 | C113: =IF(A113>$F$7+$B$6,ArrFlow_j(INDIRECT("b"&ROW()-INT($F$7)),C112,$F$8),0) -> 0.0111881339 | D113: 0 | E113: 899.9874134
A114: 100 | B114: 1800 | C114: =IF(A114>$F$7+$B$6,ArrFlow_j(INDIRECT("b"&ROW()-INT($F$7)),C113,$F$8),0) -> 0.007683684379 | D114: 0 | E114: 899.9913559
A115: 101 | B115: 1800 | C115: =IF(A115>$F$7+$B$6,ArrFlow_j(INDIRECT("b"&ROW()-INT($F$7)),C114,$F$8),0) -> 563.817723 | D115: 1 | E115: 0
A116: 102 | B116: 1800 | C116: =IF(A116>$F$7+$B$6,ArrFlow_j(INDIRECT("b"&ROW()-INT($F$7)),C115,$F$8),0) -> 951.0260304 | D116: 1 | E116: 0
A117: 103 | B117: 1800 | C117: =IF(A117>$F$7+$B$6,ArrFlow_j(INDIRECT("b"&ROW()-INT($F$7)),C116,$F$8),0) -> 1216.949414 | D117: 1 | E117: 0
A118: 104 | B118: 1800 | C118: =IF(A118>$F$7+$B$6,ArrFlow_j(INDIRECT("b"&ROW()-INT($F$7)),C117,$F$8),0) -> 1399.577846 | D118: 1 | E118: 0
A119: 105 | B119: 600 | C119: =IF(A119>$F$7+$B$6,ArrFlow_j(INDIRECT("b"&ROW()-INT($F$7)),C118,$F$8),0) -> 1525.001731 | D119: 1 | E119: 0
A120: 106 | B120: 600 | C120: =IF(A120>$F$7+$B$6,ArrFlow_j(INDIRECT("b"&ROW()-INT($F$7)),C119,$F$8),0) -> 1611.139202 | D120: 1 | E120: 0
A121: 107 | B121: 600 | C121: =IF(A121>$F$7+$B$6,ArrFlow_j(INDIRECT("b"&ROW()-INT($F$7)),C120,$F$8),0) -> 1670.295906 | D121: 1 | E121: 0
A122: 108 | B122: 600 | C122: =IF(A122>$F$7+$B$6,ArrFlow_j(INDIRECT("b"&ROW()-INT($F$7)),C121,$F$8),0) -> 1710.923008 | D122: 1 | E122: 0
A123: 109 | B123: 600 | C123: =IF(A123>$F$7+$B$6,ArrFlow_j(INDIRECT("b"&ROW()-INT($F$7)),C122,$F$8),0) -> 1738.824517 | D123: 1 | E123: 0
A124: 110 | B124: 600 | C124: =IF(A124>$F$7+$B$6,ArrFlow_j(INDIRECT("b"&ROW()-INT($F$7)),C123,$F$8),0) -> 1757.986461 | D124: 1 | E124: 0
A125: 111 | B125: 600 | C125: =IF(A125>$F$7+$B$6,ArrFlow_j(INDIRECT("b"&ROW()-INT($F$7)),C124,$F$8),0) -> 1771.146325 | D125: 1 | E125: 0
A126: 112 | B126: 600 | C126: =IF(A126>$F$7+$B$6,ArrFlow_j(INDIRECT("b"&ROW()-INT($F$7)),C125,$F$8),0) -> 1780.184137 | D126: 1 | E126: 0
A127: 113 | B127: 600 | C127: =IF(A127>$F$7+$B$6,ArrFlow_j(INDIRECT("b"&ROW()-INT($F$7)),C126,$F$8),0) -> 1786.391043 | D127: 1 | E127: 0
A128: 114 | B128: 600 | C128: =IF(A128>$F$7+$B$6,ArrFlow_j(INDIRECT("b"&ROW()-INT($F$7)),C127,$F$8),0) -> 1790.653765 | D128: 1 | E128: 0
A129: 115 | B129: 600 | C129: =IF(A129>$F$7+$B$6,ArrFlow_j(INDIRECT("b"&ROW()-INT($F$7)),C128,$F$8),0) -> 1793.581278 | D129: 1 | E129: 0
A130: 116 | B130: 600 | C130: =IF(A130>$F$7+$B$6,ArrFlow_j(INDIRECT("b"&ROW()-INT($F$7)),C129,$F$8),0) -> 1419.716845 | D130: 1 | E130: 0
A131: 117 | B131: 600 | C131: =IF(A131>$F$7+$B$6,ArrFlow_j(INDIRECT("b"&ROW()-INT($F$7)),C130,$F$8),0) -> 1162.957645 | D131: 1 | E131: 0
A132: 118 | B132: 600 | C132: =IF(A132>$F$7+$B$6,ArrFlow_j(INDIRECT("b"&ROW()-INT($F$7)),C131,$F$8),0) -> 986.6229079 | D132: 1 | E132: 0
A133: 119 | B133: 600 | C133: =IF(A133>$F$7+$B$6,ArrFlow_j(INDIRECT("b"&ROW()-INT($F$7)),C132,$F$8),0) -> 865.5213482 | D133: 1 | E133: 0
A134: 120 | B134: 0 | C134: =IF(A134>$F$7+$B$6,ArrFlow_j(INDIRECT("b"&ROW()-INT($F$7)),C133,$F$8),0) -> 782.3523255 | D134: 1 | E134: 0
A135: 121 | B135: 0 | C135: =IF(A135>$F$7+$B$6,ArrFlow_j(INDIRECT("b"&ROW()-INT($F$7)),C134,$F$8),0) -> 725.234264 | D135: 1 | E135: 0
A136: 122 | B136: 0 | C136: =IF(A136>$F$7+$B$6,ArrFlow_j(INDIRECT("b"&ROW()-INT($F$7)),C135,$F$8),0) -> 686.0072436 | D136: 1 | E136: 0
A137: 123 | B137: 0 | C137: =IF(A137>$F$7+$B$6,ArrFlow_j(INDIRECT("b"&ROW()-INT($F$7)),C136,$F$8),0) -> 659.067269 | D137: 1 | E137: 0
A138: 124 | B138: 0 | C138: =IF(A138>$F$7+$B$6,ArrFlow_j(INDIRECT("b"&ROW()-INT($F$7)),C137,$F$8),0) -> 640.5656793 | D138: 1 | E138: 0
A139: 125 | B139: 0 | C139: =IF(A139>$F$7+$B$6,ArrFlow_j(INDIRECT("b"&ROW()-INT($F$7)),C138,$F$8),0) -> 627.8593266 | D139: 1 | E139: 0
A140: 126 | B140: 0 | C140: =IF(A140>$F$7+$B$6,ArrFlow_j(INDIRECT("b"&ROW()-INT($F$7)),C139,$F$8),0) -> 619.1329738 | D140: 1 | E140: 0
A141: 127 | B141: 0 | C141: =IF(A141>$F$7+$B$6,ArrFlow_j(INDIRECT("b"&ROW()-INT($F$7)),C140,$F$8),0) -> 613.1399689 | D141: 1 | E141: 0
A142: 128 | B142: =DepFlowi($B$9,$B$5,$B$4,$B$8,$B$7,A142) -> 0 | C142: =IF(A142>$F$7+$B$6,ArrFlow_j(INDIRECT("b"&ROW()-INT($F$7)),C141,$F$8),0) -> 609.0241478 | D142: 1 | E142: =IF(A142>$B$6+$F$7,PotCap(C142,$J$6,$K$6,D142),"") -> 0
A143: 129 | B143: 0 | C143: =IF(A143>$F$7+$B$6,ArrFlow_j(INDIRECT("b"&ROW()-INT($F$7)),C142,$F$8),0) -> 606.1975218 | D143: =IF(C143>(3600/$J$6),1,0) -> 1 | E143: 0
A144: 130 | B144: 0 | C144: =IF(A144>$F$7+$B$6,ArrFlow_j(INDIRECT("b"&ROW()-INT($F$7)),C143,$F$8),0) -> 604.2562774 | D144: 1 | E144: 0
A145: 131 | B145: 0 | C145: =IF(A145>$F$7+$B$6,ArrFlow_j(INDIRECT("b"&ROW()-INT($F$7)),C144,$F$8),0) -> 414.9856053 | D145: 0 | E145: 531.03063
A146: 132 | B146: 0 | C146: =IF(A146>$F$7+$B$6,ArrFlow_j(INDIRECT("b"&ROW()-INT($F$7)),C145,$F$8),0) -> 285.0000224 | D146: 0 | E146: 627.6420249
A147: 133 | B147: 0 | C147: =IF(A147>$F$7+$B$6,ArrFlow_j(INDIRECT("b"&ROW()-INT($F$7)),C146,$F$8),0) -> 195.7297114 | D147: 0 | E147: 703.2853516
A148: 134 | B148: 0 | C148: =IF(A148>$F$7+$B$6,ArrFlow_j(INDIRECT("b"&ROW()-INT($F$7)),C147,$F$8),0) -> 134.4214629 | D148: 0 | E148: 760.0913516
A149: 135 | B149: 0 | C149: =IF(A149>$F$7+$B$6,ArrFlow_j(INDIRECT("b"&ROW()-INT($F$7)),C148,$F$8),0) -> 92.31674411 | D149: 0 | E149: 801.5605199
A150: 136 | B150: 0 | C150: =IF(A150>$F$7+$B$6,ArrFlow_j(INDIRECT("b"&ROW()-INT($F$7)),C149,$F$8),0) -> 63.40045005 | D150: 0 | E150: 831.2556915
A151: 137 | B151: 0 | C151: =IF(A151>$F$7+$B$6,ArrFlow_j(INDIRECT("b"&ROW()-INT($F$7)),C150,$F$8),0) -> 43.54158181 | D151: 0 | E151: 852.2417782
A152: 138 | B152: 0 | C152: =IF(A152>$F$7+$B$6,ArrFlow_j(INDIRECT("b"&ROW()-INT($F$7)),C151,$F$8),0) -> 29.90308973 | D152: 0 | E152: 866.9401159
A153: 139 | B153: 0 | C153: =IF(A153>$F$7+$B$6,ArrFlow_j(INDIRECT("b"&ROW()-INT($F$7)),C152,$F$8),0) -> 20.53657075 | D153: 0 | E153: 877.1713497
A154: 140 | B154: 0 | C154: =IF(A154>$F$7+$B$6,ArrFlow_j(INDIRECT("b"&ROW()-INT($F$7)),C153,$F$8),0) -> 14.10391842 | D154: 0 | E154: 884.2630911
A155: 141 | B155: 0 | C155: =IF(A155>$F$7+$B$6,ArrFlow_j(INDIRECT("b"&ROW()-INT($F$7)),C154,$F$8),0) -> 9.686160231 | D155: 0 | E155: 889.1644814
A156: 142 | B156: 0 | C156: =IF(A156>$F$7+$B$6,ArrFlow_j(INDIRECT("b"&ROW()-INT($F$7)),C155,$F$8),0) -> 6.652172624 | D156: 0 | E156: 892.5453023
A157: 143 | B157: 0 | C157: =IF(A157>$F$7+$B$6,ArrFlow_j(INDIRECT("b"&ROW()-INT($F$7)),C156,$F$8),0) -> 4.568518336 | D157: 0 | E157: 894.8741034
A158: 144 | B158: 0 | C158: =IF(A158>$F$7+$B$6,ArrFlow_j(INDIRECT("b"&ROW()-INT($F$7)),C157,$F$8),0) -> 3.137525282 | D158: 0 | E158: 896.4767427
A159: 145 | B159: 0 | C159: =IF(A159>$F$7+$B$6,ArrFlow_j(INDIRECT("b"&ROW()-INT($F$7)),C158,$F$8),0) -> 2.154760946 | D159: 0 | E159: 897.5789412
A160: 146 | B160: 0 | C160: =IF(A160>$F$7+$B$6,ArrFlow_j(INDIRECT("b"&ROW()-INT($F$7)),C159,$F$8),0) -> 1.479827035 | D160: 0 | E160: 898.3366322
A161: 147 | B161: 0 | C161: =IF(A161>$F$7+$B$6,ArrFlow_j(INDIRECT("b"&ROW()-INT($F$7)),C160,$F$8),0) -> 1.016302091 | D161: 0 | E161: 898.8573383
A162: 148 | B162: 0 | C162: =IF(A162>$F$7+$B$6,ArrFlow_j(INDIRECT("b"&ROW()-INT($F$7)),C161,$F$8),0) -> 0.6979666641 | D162: 0 | E162: 899.2151074
A163: 149 | B163: 0 | C163: =IF(A163>$F$7+$B$6,ArrFlow_j(INDIRECT("b"&ROW()-INT($F$7)),C162,$F$8),0) -> 0.4793431684 | D163: 0 | E163: 899.4608898
A164: 150 | B164: 1800 | C164: =IF(A164>$F$7+$B$6,ArrFlow_j(INDIRECT("b"&ROW()-INT($F$7)),C163,$F$8),0) -> 0.3291989216 | D164: 0 | E164: 899.6297224
A165: 151 | B165: 1800 | C165: =IF(A165>$F$7+$B$6,ArrFlow_j(INDIRECT("b"&ROW()-INT($F$7)),C164,$F$8),0) -> 0.2260842276 | D165: 0 | E165: 899.7456888
A166: 152 | B166: 1800 | C166: =IF(A166>$F$7+$B$6,ArrFlow_j(INDIRECT("b"&ROW()-INT($F$7)),C165,$F$8),0) -> 0.1552680602 | D166: 0 | E166: 899.8253393
A167: 153 | B167: 1800 | C167: =IF(A167>$F$7+$B$6,ArrFlow_j(INDIRECT("b"&ROW()-INT($F$7)),C166,$F$8),0) -> 0.1066335797 | D167: 0 | E167: 899.8800447
A168: 154 | B168: 1800 | C168: =IF(A168>$F$7+$B$6,ArrFlow_j(INDIRECT("b"&ROW()-INT($F$7)),C167,$F$8),0) -> 0.0732328356 | D168: 0 | E168: 899.9176166
A169: 155 | B169: 1800 | C169: =IF(A169>$F$7+$B$6,ArrFlow_j(INDIRECT("b"&ROW()-INT($F$7)),C168,$F$8),0) -> 0.05029417773 | D169: 0 | E169: 899.9434207
A170: 156 | B170: 1800 | C170: =IF(A170>$F$7+$B$6,ArrFlow_j(INDIRECT("b"&ROW()-INT($F$7)),C169,$F$8),0) -> 0.03454057586 | D170: 0 | E170: 899.9611426
A171: 157 | B171: 1800 | C171: =IF(A171>$F$7+$B$6,ArrFlow_j(INDIRECT("b"&ROW()-INT($F$7)),C170,$F$8),0) -> 0.0237214611 | D171: 0 | E171: 899.9733137
A172: 158 | B172: 1800 | C172: =IF(A172>$F$7+$B$6,ArrFlow_j(INDIRECT("b"&ROW()-INT($F$7)),C171,$F$8),0) -> 0.01629120832 | D172: 0 | E172: 899.9816726
A173: 159 | B173: 1800 | C173: =IF(A173>$F$7+$B$6,ArrFlow_j(INDIRECT("b"&ROW()-INT($F$7)),C172,$F$8),0) -> 0.0111883272 | D173: 0 | E173: 899.9874132
A174: 160 | B174: 1800 | C174: =IF(A174>$F$7+$B$6,ArrFlow_j(INDIRECT("b"&ROW()-INT($F$7)),C173,$F$8),0) -> 0.00768381713 | D174: 0 | E174: 899.9913557
A175: 161 | B175: 1800 | C175: =IF(A175>$F$7+$B$6,ArrFlow_j(INDIRECT("b"&ROW()-INT($F$7)),C174,$F$8),0) -> 563.8177231 | D175: 1 | E175: 0
A176: 162 | B176: 1800 | C176: =IF(A176>$F$7+$B$6,ArrFlow_j(INDIRECT("b"&ROW()-INT($F$7)),C175,$F$8),0) -> 951.0260305 | D176: 1 | E176: 0
A177: 163 | B177: 1800 | C177: =IF(A177>$F$7+$B$6,ArrFlow_j(INDIRECT("b"&ROW()-INT($F$7)),C176,$F$8),0) -> 1216.949414 | D177: 1 | E177: 0
A178: 164 | B178: 1800 | C178: =IF(A178>$F$7+$B$6,ArrFlow_j(INDIRECT("b"&ROW()-INT($F$7)),C177,$F$8),0) -> 1399.577846 | D178: 1 | E178: 0
A179: 165 | B179: 600 | C179: =IF(A179>$F$7+$B$6,ArrFlow_j(INDIRECT("b"&ROW()-INT($F$7)),C178,$F$8),0) -> 1525.001731 | D179: 1 | E179: 0
A180: 166 | B180: 600 | C180: =IF(A180>$F$7+$B$6,ArrFlow_j(INDIRECT("b"&ROW()-INT($F$7)),C179,$F$8),0) -> 1611.139202 | D180: 1 | E180: 0
A181: 167 | B181: 600 | C181: =IF(A181>$F$7+$B$6,ArrFlow_j(INDIRECT("b"&ROW()-INT($F$7)),C180,$F$8),0) -> 1670.295907 | D181: 1 | E181: 0
A182: 168 | B182: 600 | C182: =IF(A182>$F$7+$B$6,ArrFlow_j(INDIRECT("b"&ROW()-INT($F$7)),C181,$F$8),0) -> 1710.923008 | D182: 1 | E182: 0
A183: 169 | B183: 600 | C183: =IF(A183>$F$7+$B$6,ArrFlow_j(INDIRECT("b"&ROW()-INT($F$7)),C182,$F$8),0) -> 1738.824517 | D183: 1 | E183: 0
A184: 170 | B184: 600 | C184: =IF(A184>$F$7+$B$6,ArrFlow_j(INDIRECT("b"&ROW()-INT($F$7)),C183,$F$8),0) -> 1757.986461 | D184: 1 | E184: 0
A185: 171 | B185: 600 | C185: =IF(A185>$F$7+$B$6,ArrFlow_j(INDIRECT("b"&ROW()-INT($F$7)),C184,$F$8),0) -> 1771.146325 | D185: 1 | E185: 0
A186: 172 | B186: 600 | C186: =IF(A186>$F$7+$B$6,ArrFlow_j(INDIRECT("b"&ROW()-INT($F$7)),C185,$F$8),0) -> 1780.184137 | D186: 1 | E186: 0
A187: 173 | B187: 600 | C187: =IF(A187>$F$7+$B$6,ArrFlow_j(INDIRECT("b"&ROW()-INT($F$7)),C186,$F$8),0) -> 1786.391043 | D187: 1 | E187: 0
A188: 174 | B188: 600 | C188: =IF(A188>$F$7+$B$6,ArrFlow_j(INDIRECT("b"&ROW()-INT($F$7)),C187,$F$8),0) -> 1790.653765 | D188: 1 | E188: 0
A189: 175 | B189: 600 | C189: =IF(A189>$F$7+$B$6,ArrFlow_j(INDIRECT("b"&ROW()-INT($F$7)),C188,$F$8),0) -> 1793.581278 | D189: 1 | E189: 0
A190: 176 | B190: 600 | C190: =IF(A190>$F$7+$B$6,ArrFlow_j(INDIRECT("b"&ROW()-INT($F$7)),C189,$F$8),0) -> 1419.716845 | D190: 1 | E190: 0
A191: 177 | B191: 600 | C191: =IF(A191>$F$7+$B$6,ArrFlow_j(INDIRECT("b"&ROW()-INT($F$7)),C190,$F$8),0) -> 1162.957645 | D191: 1 | E191: 0
A192: 178 | B192: 600 | C192: =IF(A192>$F$7+$B$6,ArrFlow_j(INDIRECT("b"&ROW()-INT($F$7)),C191,$F$8),0) -> 986.6229079 | D192: 1 | E192: 0
A193: 179 | B193: 600 | C193: =IF(A193>$F$7+$B$6,ArrFlow_j(INDIRECT("b"&ROW()-INT($F$7)),C192,$F$8),0) -> 865.5213482 | D193: 1 | E193: 0
A194: 180 | B194: 0 | C194: =IF(A194>$F$7+$B$6,ArrFlow_j(INDIRECT("b"&ROW()-INT($F$7)),C193,$F$8),0) -> 782.3523255 | D194: 1 | E194: 0
A195: 181 | B195: 0 | C195: =IF(A195>$F$7+$B$6,ArrFlow_j(INDIRECT("b"&ROW()-INT($F$7)),C194,$F$8),0) -> 725.234264 | D195: 1 | E195: 0
A196: 182 | B196: 0 | C196: =IF(A196>$F$7+$B$6,ArrFlow_j(INDIRECT("b"&ROW()-INT($F$7)),C195,$F$8),0) -> 686.0072436 | D196: 1 | E196: 0
A197: 183 | B197: 0 | C197: =IF(A197>$F$7+$B$6,ArrFlow_j(INDIRECT("b"&ROW()-INT($F$7)),C196,$F$8),0) -> 659.067269 | D197: 1 | E197: 0
A198: 184 | B198: 0 | C198: =IF(A198>$F$7+$B$6,ArrFlow_j(INDIRECT("b"&ROW()-INT($F$7)),C197,$F$8),0) -> 640.5656793 | D198: 1 | E198: 0
A199: 185 | B199: 0 | C199: =IF(A199>$F$7+$B$6,ArrFlow_j(INDIRECT("b"&ROW()-INT($F$7)),C198,$F$8),0) -> 627.8593266 | D199: 1 | E199: 0
A200: 186 | B200: 0 | C200: =IF(A200>$F$7+$B$6,ArrFlow_j(INDIRECT("b"&ROW()-INT($F$7)),C199,$F$8),0) -> 619.1329738 | D200: 1 | E200: 0
A201: 187 | B201: 0 | C201: =IF(A201>$F$7+$B$6,ArrFlow_j(INDIRECT("b"&ROW()-INT($F$7)),C200,$F$8),0) -> 613.1399689 | D201: 1 | E201: 0
A202: 188 | B202: 0 | C202: =IF(A202>$F$7+$B$6,ArrFlow_j(INDIRECT("b"&ROW()-INT($F$7)),C201,$F$8),0) -> 609.0241478 | D202: 1 | E202: 0
A203: 189 | B203: 0 | C203: =IF(A203>$F$7+$B$6,ArrFlow_j(INDIRECT("b"&ROW()-INT($F$7)),C202,$F$8),0) -> 606.1975218 | D203: 1 | E203: 0
... 11 more rows

Sheet d=1000
A1: Flow Profile at downstream signal (minor TH movement)
A3: Given Data | E3: Robertson Model | I3: Movement | J3: tc | K3: tf | M3: Summary | N3: Cap | O3: Distance | P3: Blocked | R3: ConFlow-Option 3 | U3: Capacity Options | Z3: Analysis of one cycle period (t=42-101)
A4: C | B4: 60 | C4: sec | E4: Distance | F4: 1000 | G4: ft | I4: MajorLT | J4: 4.1 | K4: 2.2 | M4: GapCap | N4: =(INT((B4-B9-J6)/K6)+1)*(3600/B4) -> 600 | R4: ConFlow | S4: =SUM(C68:C127)/60 -> 575.8690872 | U4: Option | V4: CapFlow | W4: PropBlocked
A5: G | B5: 30 | C5: sec | E5: Speed | F5: 25 | G5: mi/hr | I5: MinorRT | J5: 6.2 | K5: 3.3 | M5: c random | N5: =PotCap(B8,J6,K6,0) -> 417.3579939 | U5: 3 | V5: =PotCap(S4,J6,K6,0) -> 430.7626836
A6: R | B6: =B4-B5 -> 30 | C6: sec | E6: tR | F6: =(F4)/(1.47*F5) -> 27.21088435 | G6: sec | I6: MinorTH | J6: 6.5 | K6: 4 | R6: Critical flow line | U6: 4 | V6: =AVERAGE(E68:E127) -> 427.3952583
A7: SatFlow | B7: 1800 | C7: veh/hr-g | E7: tprime | F7: =tprime(F6,F8) -> 23.39078231 | G7: sec | I7: MinorLT | J7: 7.1 | K7: 3.5 | S7: =3600/$J$6 -> 553.8461538 | T7: 42
A8: ArrFlow | B8: 600 | C8: veh/hr | E8: F | F8: =F(F6) -> 0.1972346892 | S8: =3600/$J$6 -> 553.8461538 | T8: 111
A9: gq | B9: =(B8*B6)/(B7-B8) -> 15 | C9: sec
A10: gu | B10: =B5-B9 -> 15 | C10: sec
A13: Time i | B13: DepFlowi | C13: ArrFlowj | D13: Blocked? | E13: PotCapGap
A14: 0 | B14: =DepFlowi($B$9,$B$5,$B$4,$B$8,$B$7,A14) -> 0 | C14: =IF(A14>$F$7+$B$6,ArrFlow_j(INDIRECT("b"&ROW()-INT($F$7)),C13,$F$8),0) -> 0 | D14: =IF(C14>(3600/$J$6),1,0) -> 0 | E14: =IF(A14>$B$6+$F$7,PotCap(C14,$J$6,$K$6,D14),"") -> 
A15: 1 | B15: 0 | C15: =IF(A15>$F$7+$B$6,ArrFlow_j(INDIRECT("b"&ROW()-INT($F$7)),C14,$F$8),0) -> 0 | D15: =IF(C15>(3600/$J$6),1,0) -> 0
A16: 2 | B16: 0 | C16: =IF(A16>$F$7+$B$6,ArrFlow_j(INDIRECT("b"&ROW()-INT($F$7)),C15,$F$8),0) -> 0 | D16: 0
A17: 3 | B17: 0 | C17: =IF(A17>$F$7+$B$6,ArrFlow_j(INDIRECT("b"&ROW()-INT($F$7)),C16,$F$8),0) -> 0 | D17: 0
A18: 4 | B18: 0 | C18: =IF(A18>$F$7+$B$6,ArrFlow_j(INDIRECT("b"&ROW()-INT($F$7)),C17,$F$8),0) -> 0 | D18: 0
A19: 5 | B19: 0 | C19: =IF(A19>$F$7+$B$6,ArrFlow_j(INDIRECT("b"&ROW()-INT($F$7)),C18,$F$8),0) -> 0 | D19: 0
A20: 6 | B20: 0 | C20: =IF(A20>$F$7+$B$6,ArrFlow_j(INDIRECT("b"&ROW()-INT($F$7)),C19,$F$8),0) -> 0 | D20: 0
A21: 7 | B21: 0 | C21: =IF(A21>$F$7+$B$6,ArrFlow_j(INDIRECT("b"&ROW()-INT($F$7)),C20,$F$8),0) -> 0 | D21: 0
A22: 8 | B22: 0 | C22: =IF(A22>$F$7+$B$6,ArrFlow_j(INDIRECT("b"&ROW()-INT($F$7)),C21,$F$8),0) -> 0 | D22: 0
A23: 9 | B23: 0 | C23: =IF(A23>$F$7+$B$6,ArrFlow_j(INDIRECT("b"&ROW()-INT($F$7)),C22,$F$8),0) -> 0 | D23: 0
A24: 10 | B24: 0 | C24: =IF(A24>$F$7+$B$6,ArrFlow_j(INDIRECT("b"&ROW()-INT($F$7)),C23,$F$8),0) -> 0 | D24: 0
A25: 11 | B25: 0 | C25: =IF(A25>$F$7+$B$6,ArrFlow_j(INDIRECT("b"&ROW()-INT($F$7)),C24,$F$8),0) -> 0 | D25: 0
A26: 12 | B26: 0 | C26: =IF(A26>$F$7+$B$6,ArrFlow_j(INDIRECT("b"&ROW()-INT($F$7)),C25,$F$8),0) -> 0 | D26: 0
A27: 13 | B27: 0 | C27: =IF(A27>$F$7+$B$6,ArrFlow_j(INDIRECT("b"&ROW()-INT($F$7)),C26,$F$8),0) -> 0 | D27: 0
A28: 14 | B28: 0 | C28: =IF(A28>$F$7+$B$6,ArrFlow_j(INDIRECT("b"&ROW()-INT($F$7)),C27,$F$8),0) -> 0 | D28: 0
A29: 15 | B29: 0 | C29: =IF(A29>$F$7+$B$6,ArrFlow_j(INDIRECT("b"&ROW()-INT($F$7)),C28,$F$8),0) -> 0 | D29: 0
A30: 16 | B30: 0 | C30: =IF(A30>$F$7+$B$6,ArrFlow_j(INDIRECT("b"&ROW()-INT($F$7)),C29,$F$8),0) -> 0 | D30: 0
A31: 17 | B31: 0 | C31: =IF(A31>$F$7+$B$6,ArrFlow_j(INDIRECT("b"&ROW()-INT($F$7)),C30,$F$8),0) -> 0 | D31: 0
A32: 18 | B32: 0 | C32: =IF(A32>$F$7+$B$6,ArrFlow_j(INDIRECT("b"&ROW()-INT($F$7)),C31,$F$8),0) -> 0 | D32: 0
A33: 19 | B33: 0 | C33: =IF(A33>$F$7+$B$6,ArrFlow_j(INDIRECT("b"&ROW()-INT($F$7)),C32,$F$8),0) -> 0 | D33: 0
A34: 20 | B34: 0 | C34: =IF(A34>$F$7+$B$6,ArrFlow_j(INDIRECT("b"&ROW()-INT($F$7)),C33,$F$8),0) -> 0 | D34: 0
A35: 21 | B35: 0 | C35: =IF(A35>$F$7+$B$6,ArrFlow_j(INDIRECT("b"&ROW()-INT($F$7)),C34,$F$8),0) -> 0 | D35: 0
A36: 22 | B36: 0 | C36: =IF(A36>$F$7+$B$6,ArrFlow_j(INDIRECT("b"&ROW()-INT($F$7)),C35,$F$8),0) -> 0 | D36: 0
A37: 23 | B37: 0 | C37: =IF(A37>$F$7+$B$6,ArrFlow_j(INDIRECT("b"&ROW()-INT($F$7)),C36,$F$8),0) -> 0 | D37: 0
A38: 24 | B38: 0 | C38: =IF(A38>$F$7+$B$6,ArrFlow_j(INDIRECT("b"&ROW()-INT($F$7)),C37,$F$8),0) -> 0 | D38: 0
A39: 25 | B39: 0 | C39: =IF(A39>$F$7+$B$6,ArrFlow_j(INDIRECT("b"&ROW()-INT($F$7)),C38,$F$8),0) -> 0 | D39: 0
A40: 26 | B40: 0 | C40: =IF(A40>$F$7+$B$6,ArrFlow_j(INDIRECT("b"&ROW()-INT($F$7)),C39,$F$8),0) -> 0 | D40: 0
A41: 27 | B41: 0 | C41: =IF(A41>$F$7+$B$6,ArrFlow_j(INDIRECT("b"&ROW()-INT($F$7)),C40,$F$8),0) -> 0 | D41: 0
A42: 28 | B42: 0 | C42: =IF(A42>$F$7+$B$6,ArrFlow_j(INDIRECT("b"&ROW()-INT($F$7)),C41,$F$8),0) -> 0 | D42: 0
A43: 29 | B43: 0 | C43: =IF(A43>$F$7+$B$6,ArrFlow_j(INDIRECT("b"&ROW()-INT($F$7)),C42,$F$8),0) -> 0 | D43: 0
A44: 30 | B44: 1800 | C44: =IF(A44>$F$7+$B$6,ArrFlow_j(INDIRECT("b"&ROW()-INT($F$7)),C43,$F$8),0) -> 0 | D44: 0
A45: 31 | B45: 1800 | C45: =IF(A45>$F$7+$B$6,ArrFlow_j(INDIRECT("b"&ROW()-INT($F$7)),C44,$F$8),0) -> 0 | D45: 0
A46: 32 | B46: 1800 | C46: =IF(A46>$F$7+$B$6,ArrFlow_j(INDIRECT("b"&ROW()-INT($F$7)),C45,$F$8),0) -> 0 | D46: 0
A47: 33 | B47: 1800 | C47: =IF(A47>$F$7+$B$6,ArrFlow_j(INDIRECT("b"&ROW()-INT($F$7)),C46,$F$8),0) -> 0 | D47: 0
A48: 34 | B48: 1800 | C48: =IF(A48>$F$7+$B$6,ArrFlow_j(INDIRECT("b"&ROW()-INT($F$7)),C47,$F$8),0) -> 0 | D48: 0
A49: 35 | B49: 1800 | C49: =IF(A49>$F$7+$B$6,ArrFlow_j(INDIRECT("b"&ROW()-INT($F$7)),C48,$F$8),0) -> 0 | D49: 0
A50: 36 | B50: 1800 | C50: =IF(A50>$F$7+$B$6,ArrFlow_j(INDIRECT("b"&ROW()-INT($F$7)),C49,$F$8),0) -> 0 | D50: 0
A51: 37 | B51: 1800 | C51: =IF(A51>$F$7+$B$6,ArrFlow_j(INDIRECT("b"&ROW()-INT($F$7)),C50,$F$8),0) -> 0 | D51: 0
A52: 38 | B52: 1800 | C52: =IF(A52>$F$7+$B$6,ArrFlow_j(INDIRECT("b"&ROW()-INT($F$7)),C51,$F$8),0) -> 0 | D52: 0
A53: 39 | B53: 1800 | C53: =IF(A53>$F$7+$B$6,ArrFlow_j(INDIRECT("b"&ROW()-INT($F$7)),C52,$F$8),0) -> 0 | D53: 0
A54: 40 | B54: 1800 | C54: =IF(A54>$F$7+$B$6,ArrFlow_j(INDIRECT("b"&ROW()-INT($F$7)),C53,$F$8),0) -> 0 | D54: 0
A55: 41 | B55: 1800 | C55: =IF(A55>$F$7+$B$6,ArrFlow_j(INDIRECT("b"&ROW()-INT($F$7)),C54,$F$8),0) -> 0 | D55: 0
A56: 42 | B56: 1800 | C56: =IF(A56>$F$7+$B$6,ArrFlow_j(INDIRECT("b"&ROW()-INT($F$7)),C55,$F$8),0) -> 0 | D56: 0
A57: 43 | B57: 1800 | C57: =IF(A57>$F$7+$B$6,ArrFlow_j(INDIRECT("b"&ROW()-INT($F$7)),C56,$F$8),0) -> 0 | D57: 0
A58: 44 | B58: 1800 | C58: =IF(A58>$F$7+$B$6,ArrFlow_j(INDIRECT("b"&ROW()-INT($F$7)),C57,$F$8),0) -> 0 | D58: 0
A59: 45 | B59: 600 | C59: =IF(A59>$F$7+$B$6,ArrFlow_j(INDIRECT("b"&ROW()-INT($F$7)),C58,$F$8),0) -> 0 | D59: 0
A60: 46 | B60: 600 | C60: =IF(A60>$F$7+$B$6,ArrFlow_j(INDIRECT("b"&ROW()-INT($F$7)),C59,$F$8),0) -> 0 | D60: 0
A61: 47 | B61: 600 | C61: =IF(A61>$F$7+$B$6,ArrFlow_j(INDIRECT("b"&ROW()-INT($F$7)),C60,$F$8),0) -> 0 | D61: 0
A62: 48 | B62: 600 | C62: =IF(A62>$F$7+$B$6,ArrFlow_j(INDIRECT("b"&ROW()-INT($F$7)),C61,$F$8),0) -> 0 | D62: 0
A63: 49 | B63: 600 | C63: =IF(A63>$F$7+$B$6,ArrFlow_j(INDIRECT("b"&ROW()-INT($F$7)),C62,$F$8),0) -> 0 | D63: 0
A64: 50 | B64: 600 | C64: =IF(A64>$F$7+$B$6,ArrFlow_j(INDIRECT("b"&ROW()-INT($F$7)),C63,$F$8),0) -> 0 | D64: 0
A65: 51 | B65: 600 | C65: =IF(A65>$F$7+$B$6,ArrFlow_j(INDIRECT("b"&ROW()-INT($F$7)),C64,$F$8),0) -> 0 | D65: 0
A66: 52 | B66: 600 | C66: =IF(A66>$F$7+$B$6,ArrFlow_j(INDIRECT("b"&ROW()-INT($F$7)),C65,$F$8),0) -> 0 | D66: 0
A67: 53 | B67: 600 | C67: =IF(A67>$F$7+$B$6,ArrFlow_j(INDIRECT("b"&ROW()-INT($F$7)),C66,$F$8),0) -> 0 | D67: 0
A68: 54 | B68: 600 | C68: =IF(A68>$F$7+$B$6,ArrFlow_j(INDIRECT("b"&ROW()-INT($F$7)),C67,$F$8),0) -> 355.0224405 | D68: 0 | E68: 573.7200229
A69: 55 | B69: 600 | C69: =IF(A69>$F$7+$B$6,ArrFlow_j(INDIRECT("b"&ROW()-INT($F$7)),C68,$F$8),0) -> 640.0221403 | D69: 1 | E69: 0
A70: 56 | B70: 600 | C70: =IF(A70>$F$7+$B$6,ArrFlow_j(INDIRECT("b"&ROW()-INT($F$7)),C69,$F$8),0) -> 868.8100129 | D70: 1 | E70: 0
A71: 57 | B71: 600 | C71: =IF(A71>$F$7+$B$6,ArrFlow_j(INDIRECT("b"&ROW()-INT($F$7)),C70,$F$8),0) -> 1052.472981 | D71: 1 | E71: 0
A72: 58 | B72: 600 | C72: =IF(A72>$F$7+$B$6,ArrFlow_j(INDIRECT("b"&ROW()-INT($F$7)),C71,$F$8),0) -> 1199.91124 | D72: 1 | E72: 0
A73: 59 | B73: 600 | C73: =IF(A73>$F$7+$B$6,ArrFlow_j(INDIRECT("b"&ROW()-INT($F$7)),C72,$F$8),0) -> 1318.26956 | D73: 1 | E73: 0
A74: 60 | B74: 0 | C74: =IF(A74>$F$7+$B$6,ArrFlow_j(INDIRECT("b"&ROW()-INT($F$7)),C73,$F$8),0) -> 1413.283514 | D74: 1 | E74: 0
A75: 61 | B75: 0 | C75: =IF(A75>$F$7+$B$6,ArrFlow_j(INDIRECT("b"&ROW()-INT($F$7)),C74,$F$8),0) -> 1489.55742 | D75: 1 | E75: 0
A76: 62 | B76: 0 | C76: =IF(A76>$F$7+$B$6,ArrFlow_j(INDIRECT("b"&ROW()-INT($F$7)),C75,$F$8),0) -> 1550.787465 | D76: 1 | E76: 0
A77: 63 | B77: 0 | C77: =IF(A77>$F$7+$B$6,ArrFlow_j(INDIRECT("b"&ROW()-INT($F$7)),C76,$F$8),0) -> 1599.940822 | D77: 1 | E77: 0
A78: 64 | B78: =DepFlowi($B$9,$B$5,$B$4,$B$8,$B$7,A78) -> 0 | C78: =IF(A78>$F$7+$B$6,ArrFlow_j(INDIRECT("b"&ROW()-INT($F$7)),C77,$F$8),0) -> 1639.399432 | D78: 1 | E78: =IF(A78>$B$6+$F$7,PotCap(C78,$J$6,$K$6,D78),"") -> 0
A79: 65 | B79: 0 | C79: =IF(A79>$F$7+$B$6,ArrFlow_j(INDIRECT("b"&ROW()-INT($F$7)),C78,$F$8),0) -> 1671.075435 | D79: =IF(C79>(3600/$J$6),1,0) -> 1 | E79: 0
A80: 66 | B80: 0 | C80: =IF(A80>$F$7+$B$6,ArrFlow_j(INDIRECT("b"&ROW()-INT($F$7)),C79,$F$8),0) -> 1696.503832 | D80: 1 | E80: 0
A81: 67 | B81: 0 | C81: =IF(A81>$F$7+$B$6,ArrFlow_j(INDIRECT("b"&ROW()-INT($F$7)),C80,$F$8),0) -> 1716.916866 | D81: 1 | E81: 0
A82: 68 | B82: 0 | C82: =IF(A82>$F$7+$B$6,ArrFlow_j(INDIRECT("b"&ROW()-INT($F$7)),C81,$F$8),0) -> 1496.622115 | D82: 1 | E82: 0
A83: 69 | B83: 0 | C83: =IF(A83>$F$7+$B$6,ArrFlow_j(INDIRECT("b"&ROW()-INT($F$7)),C82,$F$8),0) -> 1319.777131 | D83: 1 | E83: 0
A84: 70 | B84: 0 | C84: =IF(A84>$F$7+$B$6,ArrFlow_j(INDIRECT("b"&ROW()-INT($F$7)),C83,$F$8),0) -> 1177.812112 | D84: 1 | E84: 0
A85: 71 | B85: 0 | C85: =IF(A85>$F$7+$B$6,ArrFlow_j(INDIRECT("b"&ROW()-INT($F$7)),C84,$F$8),0) -> 1063.84752 | D85: 1 | E85: 0
A86: 72 | B86: 0 | C86: =IF(A86>$F$7+$B$6,ArrFlow_j(INDIRECT("b"&ROW()-INT($F$7)),C85,$F$8),0) -> 972.3606986 | D86: 1 | E86: 0
A87: 73 | B87: 0 | C87: =IF(A87>$F$7+$B$6,ArrFlow_j(INDIRECT("b"&ROW()-INT($F$7)),C86,$F$8),0) -> 898.9182519 | D87: 1 | E87: 0
A88: 74 | B88: 0 | C88: =IF(A88>$F$7+$B$6,ArrFlow_j(INDIRECT("b"&ROW()-INT($F$7)),C87,$F$8),0) -> 839.9612034 | D88: 1 | E88: 0
A89: 75 | B89: 0 | C89: =IF(A89>$F$7+$B$6,ArrFlow_j(INDIRECT("b"&ROW()-INT($F$7)),C88,$F$8),0) -> 792.6325301 | D89: 1 | E89: 0
A90: 76 | B90: 0 | C90: =IF(A90>$F$7+$B$6,ArrFlow_j(INDIRECT("b"&ROW()-INT($F$7)),C89,$F$8),0) -> 754.6387129 | D90: 1 | E90: 0
A91: 77 | B91: 0 | C91: =IF(A91>$F$7+$B$6,ArrFlow_j(INDIRECT("b"&ROW()-INT($F$7)),C90,$F$8),0) -> 724.1385944 | D91: 1 | E91: 0
A92: 78 | B92: 0 | C92: =IF(A92>$F$7+$B$6,ArrFlow_j(INDIRECT("b"&ROW()-INT($F$7)),C91,$F$8),0) -> 699.6541573 | D92: 1 | E92: 0
A93: 79 | B93: 0 | C93: =IF(A93>$F$7+$B$6,ArrFlow_j(INDIRECT("b"&ROW()-INT($F$7)),C92,$F$8),0) -> 679.9989006 | D93: 1 | E93: 0
A94: 80 | B94: 0 | C94: =IF(A94>$F$7+$B$6,ArrFlow_j(INDIRECT("b"&ROW()-INT($F$7)),C93,$F$8),0) -> 664.2203423 | D94: 1 | E94: 0
A95: 81 | B95: 0 | C95: =IF(A95>$F$7+$B$6,ArrFlow_j(INDIRECT("b"&ROW()-INT($F$7)),C94,$F$8),0) -> 651.553863 | D95: 1 | E95: 0
A96: 82 | B96: 0 | C96: =IF(A96>$F$7+$B$6,ArrFlow_j(INDIRECT("b"&ROW()-INT($F$7)),C95,$F$8),0) -> 641.3856529 | D96: 1 | E96: 0
A97: 83 | B97: 0 | C97: =IF(A97>$F$7+$B$6,ArrFlow_j(INDIRECT("b"&ROW()-INT($F$7)),C96,$F$8),0) -> 514.882153 | D97: 0 | E97: 466.4692285
A98: 84 | B98: 0 | C98: =IF(A98>$F$7+$B$6,ArrFlow_j(INDIRECT("b"&ROW()-INT($F$7)),C97,$F$8),0) -> 413.3295316 | D98: 0 | E98: 532.1684693
A99: 85 | B99: 0 | C99: =IF(A99>$F$7+$B$6,ArrFlow_j(INDIRECT("b"&ROW()-INT($F$7)),C98,$F$8),0) -> 331.8066099 | D99: 0 | E99: 591.0966536
A100: 86 | B100: 0 | C100: =IF(A100>$F$7+$B$6,ArrFlow_j(INDIRECT("b"&ROW()-INT($F$7)),C99,$F$8),0) -> 266.3628364 | D100: 0 | E100: 642.7746717
A101: 87 | B101: 0 | C101: =IF(A101>$F$7+$B$6,ArrFlow_j(INDIRECT("b"&ROW()-INT($F$7)),C100,$F$8),0) -> 213.8268451 | D101: 0 | E101: 687.2927721
A102: 88 | B102: 0 | C102: =IF(A102>$F$7+$B$6,ArrFlow_j(INDIRECT("b"&ROW()-INT($F$7)),C101,$F$8),0) -> 171.6527738 | D102: 0 | E102: 725.102905
A103: 89 | B103: 0 | C103: =IF(A103>$F$7+$B$6,ArrFlow_j(INDIRECT("b"&ROW()-INT($F$7)),C102,$F$8),0) -> 137.7968923 | D103: 0 | E103: 756.8553035
A104: 90 | B104: 1800 | C104: =IF(A104>$F$7+$B$6,ArrFlow_j(INDIRECT("b"&ROW()-INT($F$7)),C103,$F$8),0) -> 110.6185651 | D104: 0 | E104: 783.2815331
A105: 91 | B105: 1800 | C105: =IF(A105>$F$7+$B$6,ArrFlow_j(INDIRECT("b"&ROW()-INT($F$7)),C104,$F$8),0) -> 88.80074679 | D105: 0 | E105: 805.1174974
A106: 92 | B106: 1800 | C106: =IF(A106>$F$7+$B$6,ArrFlow_j(INDIRECT("b"&ROW()-INT($F$7)),C105,$F$8),0) -> 71.2861591 | D106: 0 | E106: 823.0571777
A107: 93 | B107: 1800 | C107: =IF(A107>$F$7+$B$6,ArrFlow_j(INDIRECT("b"&ROW()-INT($F$7)),C106,$F$8),0) -> 57.22605567 | D107: 0 | E107: 837.7282313
A108: 94 | B108: 1800 | C108: =IF(A108>$F$7+$B$6,ArrFlow_j(INDIRECT("b"&ROW()-INT($F$7)),C107,$F$8),0) -> 45.93909237 | D108: 0 | E108: 849.6821518
A109: 95 | B109: 1800 | C109: =IF(A109>$F$7+$B$6,ArrFlow_j(INDIRECT("b"&ROW()-INT($F$7)),C108,$F$8),0) -> 36.87830977 | D109: 0 | E109: 859.3935085
A110: 96 | B110: 1800 | C110: =IF(A110>$F$7+$B$6,ArrFlow_j(INDIRECT("b"&ROW()-INT($F$7)),C109,$F$8),0) -> 29.6046278 | D110: 0 | E110: 867.2644043
A111: 97 | B111: 1800 | C111: =IF(A111>$F$7+$B$6,ArrFlow_j(INDIRECT("b"&ROW()-INT($F$7)),C110,$F$8),0) -> 23.76556824 | D111: 0 | E111: 873.6315765
A112: 98 | B112: 1800 | C112: =IF(A112>$F$7+$B$6,ArrFlow_j(INDIRECT("b"&ROW()-INT($F$7)),C111,$F$8),0) -> 19.07817378 | D112: 0 | E112: 878.7744999
A113: 99 | B113: 1800 | C113: =IF(A113>$F$7+$B$6,ArrFlow_j(INDIRECT("b"&ROW()-INT($F$7)),C112,$F$8),0) -> 15.3152961 | D113: 0 | E113: 882.9235151
A114: 100 | B114: 1800 | C114: =IF(A114>$F$7+$B$6,ArrFlow_j(INDIRECT("b"&ROW()-INT($F$7)),C113,$F$8),0) -> 12.29458844 | D114: 0 | E114: 886.2674366
A115: 101 | B115: 1800 | C115: =IF(A115>$F$7+$B$6,ArrFlow_j(INDIRECT("b"&ROW()-INT($F$7)),C114,$F$8),0) -> 9.869669107 | D115: 0 | E115: 888.9603787
A116: 102 | B116: 1800 | C116: =IF(A116>$F$7+$B$6,ArrFlow_j(INDIRECT("b"&ROW()-INT($F$7)),C115,$F$8),0) -> 7.923027989 | D116: 0 | E116: 891.1277088
A117: 103 | B117: 1800 | C117: =IF(A117>$F$7+$B$6,ArrFlow_j(INDIRECT("b"&ROW()-INT($F$7)),C116,$F$8),0) -> 6.360332026 | D117: 0 | E117: 892.8711373
A118: 104 | B118: 1800 | C118: =IF(A118>$F$7+$B$6,ArrFlow_j(INDIRECT("b"&ROW()-INT($F$7)),C117,$F$8),0) -> 5.105853916 | D118: 0 | E118: 894.2730064
A119: 105 | B119: 600 | C119: =IF(A119>$F$7+$B$6,ArrFlow_j(INDIRECT("b"&ROW()-INT($F$7)),C118,$F$8),0) -> 4.098802406 | D119: 0 | E119: 895.399866
A120: 106 | B120: 600 | C120: =IF(A120>$F$7+$B$6,ArrFlow_j(INDIRECT("b"&ROW()-INT($F$7)),C119,$F$8),0) -> 3.290376388 | D120: 0 | E120: 896.3054294
A121: 107 | B121: 600 | C121: =IF(A121>$F$7+$B$6,ArrFlow_j(INDIRECT("b"&ROW()-INT($F$7)),C120,$F$8),0) -> 2.641400024 | D121: 0 | E121: 897.0330033
A122: 108 | B122: 600 | C122: =IF(A122>$F$7+$B$6,ArrFlow_j(INDIRECT("b"&ROW()-INT($F$7)),C121,$F$8),0) -> 2.120424311 | D122: 0 | E122: 897.6174736
A123: 109 | B123: 600 | C123: =IF(A123>$F$7+$B$6,ArrFlow_j(INDIRECT("b"&ROW()-INT($F$7)),C122,$F$8),0) -> 1.702203081 | D123: 0 | E123: 898.0869235
A124: 110 | B124: 600 | C124: =IF(A124>$F$7+$B$6,ArrFlow_j(INDIRECT("b"&ROW()-INT($F$7)),C123,$F$8),0) -> 1.366469586 | D124: 0 | E124: 898.4639476
A125: 111 | B125: 600 | C125: =IF(A125>$F$7+$B$6,ArrFlow_j(INDIRECT("b"&ROW()-INT($F$7)),C124,$F$8),0) -> 1.096954382 | D125: 0 | E125: 898.7667164
A126: 112 | B126: 600 | C126: =IF(A126>$F$7+$B$6,ArrFlow_j(INDIRECT("b"&ROW()-INT($F$7)),C125,$F$8),0) -> 0.8805969252 | D126: 0 | E126: 899.0098376
A127: 113 | B127: 600 | C127: =IF(A127>$F$7+$B$6,ArrFlow_j(INDIRECT("b"&ROW()-INT($F$7)),C126,$F$8),0) -> 355.7293531 | D127: 0 | E127: 573.1985078
A128: 114 | B128: 600 | C128: =IF(A128>$F$7+$B$6,ArrFlow_j(INDIRECT("b"&ROW()-INT($F$7)),C127,$F$8),0) -> 640.5896252 | D128: 1 | E128: 0
A129: 115 | B129: 600 | C129: =IF(A129>$F$7+$B$6,ArrFlow_j(INDIRECT("b"&ROW()-INT($F$7)),C128,$F$8),0) -> 869.2655701 | D129: 1 | E129: 0
A130: 116 | B130: 600 | C130: =IF(A130>$F$7+$B$6,ArrFlow_j(INDIRECT("b"&ROW()-INT($F$7)),C129,$F$8),0) -> 1052.838686 | D130: 1 | E130: 0
A131: 117 | B131: 600 | C131: =IF(A131>$F$7+$B$6,ArrFlow_j(INDIRECT("b"&ROW()-INT($F$7)),C130,$F$8),0) -> 1200.204816 | D131: 1 | E131: 0
A132: 118 | B132: 600 | C132: =IF(A132>$F$7+$B$6,ArrFlow_j(INDIRECT("b"&ROW()-INT($F$7)),C131,$F$8),0) -> 1318.505232 | D132: 1 | E132: 0
A133: 119 | B133: 600 | C133: =IF(A133>$F$7+$B$6,ArrFlow_j(INDIRECT("b"&ROW()-INT($F$7)),C132,$F$8),0) -> 1413.472703 | D133: 1 | E133: 0
A134: 120 | B134: 0 | C134: =IF(A134>$F$7+$B$6,ArrFlow_j(INDIRECT("b"&ROW()-INT($F$7)),C133,$F$8),0) -> 1489.709294 | D134: 1 | E134: 0
A135: 121 | B135: 0 | C135: =IF(A135>$F$7+$B$6,ArrFlow_j(INDIRECT("b"&ROW()-INT($F$7)),C134,$F$8),0) -> 1550.909385 | D135: 1 | E135: 0
A136: 122 | B136: 0 | C136: =IF(A136>$F$7+$B$6,ArrFlow_j(INDIRECT("b"&ROW()-INT($F$7)),C135,$F$8),0) -> 1600.038695 | D136: 1 | E136: 0
A137: 123 | B137: 0 | C137: =IF(A137>$F$7+$B$6,ArrFlow_j(INDIRECT("b"&ROW()-INT($F$7)),C136,$F$8),0) -> 1639.478001 | D137: 1 | E137: 0
A138: 124 | B138: 0 | C138: =IF(A138>$F$7+$B$6,ArrFlow_j(INDIRECT("b"&ROW()-INT($F$7)),C137,$F$8),0) -> 1671.138508 | D138: 1 | E138: 0
A139: 125 | B139: 0 | C139: =IF(A139>$F$7+$B$6,ArrFlow_j(INDIRECT("b"&ROW()-INT($F$7)),C138,$F$8),0) -> 1696.554464 | D139: 1 | E139: 0
A140: 126 | B140: 0 | C140: =IF(A140>$F$7+$B$6,ArrFlow_j(INDIRECT("b"&ROW()-INT($F$7)),C139,$F$8),0) -> 1716.957512 | D140: 1 | E140: 0
A141: 127 | B141: 0 | C141: =IF(A141>$F$7+$B$6,ArrFlow_j(INDIRECT("b"&ROW()-INT($F$7)),C140,$F$8),0) -> 1733.336371 | D141: 1 | E141: 0
A142: 128 | B142: =DepFlowi($B$9,$B$5,$B$4,$B$8,$B$7,A142) -> 0 | C142: =IF(A142>$F$7+$B$6,ArrFlow_j(INDIRECT("b"&ROW()-INT($F$7)),C141,$F$8),0) -> 1509.803124 | D142: 1 | E142: =IF(A142>$B$6+$F$7,PotCap(C142,$J$6,$K$6,D142),"") -> 0
A143: 129 | B143: 0 | C143: =IF(A143>$F$7+$B$6,ArrFlow_j(INDIRECT("b"&ROW()-INT($F$7)),C142,$F$8),0) -> 1330.358388 | D143: =IF(C143>(3600/$J$6),1,0) -> 1 | E143: 0
A144: 130 | B144: 0 | C144: =IF(A144>$F$7+$B$6,ArrFlow_j(INDIRECT("b"&ROW()-INT($F$7)),C143,$F$8),0) -> 1186.306378 | D144: 1 | E144: 0
A145: 131 | B145: 0 | C145: =IF(A145>$F$7+$B$6,ArrFlow_j(INDIRECT("b"&ROW()-INT($F$7)),C144,$F$8),0) -> 1070.666422 | D145: 1 | E145: 0
A146: 132 | B146: 0 | C146: =IF(A146>$F$7+$B$6,ArrFlow_j(INDIRECT("b"&ROW()-INT($F$7)),C145,$F$8),0) -> 977.8346766 | D146: 1 | E146: 0
A147: 133 | B147: 0 | C147: =IF(A147>$F$7+$B$6,ArrFlow_j(INDIRECT("b"&ROW()-INT($F$7)),C146,$F$8),0) -> 903.3125716 | D147: 1 | E147: 0
A148: 134 | B148: 0 | C148: =IF(A148>$F$7+$B$6,ArrFlow_j(INDIRECT("b"&ROW()-INT($F$7)),C147,$F$8),0) -> 843.4888109 | D148: 1 | E148: 0
A149: 135 | B149: 0 | C149: =IF(A149>$F$7+$B$6,ArrFlow_j(INDIRECT("b"&ROW()-INT($F$7)),C148,$F$8),0) -> 795.4643709 | D149: 1 | E149: 0
A150: 136 | B150: 0 | C150: =IF(A150>$F$7+$B$6,ArrFlow_j(INDIRECT("b"&ROW()-INT($F$7)),C149,$F$8),0) -> 756.9120165 | D150: 1 | E150: 0
A151: 137 | B151: 0 | C151: =IF(A151>$F$7+$B$6,ArrFlow_j(INDIRECT("b"&ROW()-INT($F$7)),C150,$F$8),0) -> 725.9635237 | D151: 1 | E151: 0
A152: 138 | B152: 0 | C152: =IF(A152>$F$7+$B$6,ArrFlow_j(INDIRECT("b"&ROW()-INT($F$7)),C151,$F$8),0) -> 701.1191473 | D152: 1 | E152: 0
A153: 139 | B153: 0 | C153: =IF(A153>$F$7+$B$6,ArrFlow_j(INDIRECT("b"&ROW()-INT($F$7)),C152,$F$8),0) -> 681.1749437 | D153: 1 | E153: 0
A154: 140 | B154: 0 | C154: =IF(A154>$F$7+$B$6,ArrFlow_j(INDIRECT("b"&ROW()-INT($F$7)),C153,$F$8),0) -> 665.1644289 | D154: 1 | E154: 0
A155: 141 | B155: 0 | C155: =IF(A155>$F$7+$B$6,ArrFlow_j(INDIRECT("b"&ROW()-INT($F$7)),C154,$F$8),0) -> 652.311743 | D155: 1 | E155: 0
A156: 142 | B156: 0 | C156: =IF(A156>$F$7+$B$6,ArrFlow_j(INDIRECT("b"&ROW()-INT($F$7)),C155,$F$8),0) -> 641.9940526 | D156: 1 | E156: 0
A157: 143 | B157: 0 | C157: =IF(A157>$F$7+$B$6,ArrFlow_j(INDIRECT("b"&ROW()-INT($F$7)),C156,$F$8),0) -> 515.3705552 | D157: 0 | E157: 466.1725336
A158: 144 | B158: 0 | C158: =IF(A158>$F$7+$B$6,ArrFlow_j(INDIRECT("b"&ROW()-INT($F$7)),C157,$F$8),0) -> 413.721604 | D158: 0 | E158: 531.8988813
A159: 145 | B159: 0 | C159: =IF(A159>$F$7+$B$6,ArrFlow_j(INDIRECT("b"&ROW()-INT($F$7)),C158,$F$8),0) -> 332.121352 | D159: 0 | E159: 590.8578087
A160: 146 | B160: 0 | C160: =IF(A160>$F$7+$B$6,ArrFlow_j(INDIRECT("b"&ROW()-INT($F$7)),C159,$F$8),0) -> 266.6155004 | D160: 0 | E160: 642.5672515
A161: 147 | B161: 0 | C161: =IF(A161>$F$7+$B$6,ArrFlow_j(INDIRECT("b"&ROW()-INT($F$7)),C160,$F$8),0) -> 214.029675 | D161: 0 | E161: 687.1154753
A162: 148 | B162: 0 | C162: =IF(A162>$F$7+$B$6,ArrFlow_j(INDIRECT("b"&ROW()-INT($F$7)),C161,$F$8),0) -> 171.8155986 | D162: 0 | E162: 724.9532548
A163: 149 | B163: 0 | C163: =IF(A163>$F$7+$B$6,ArrFlow_j(INDIRECT("b"&ROW()-INT($F$7)),C162,$F$8),0) -> 137.9276024 | D163: 0 | E163: 756.7302505
A164: 150 | B164: 1800 | C164: =IF(A164>$F$7+$B$6,ArrFlow_j(INDIRECT("b"&ROW()-INT($F$7)),C163,$F$8),0) -> 110.7234946 | D164: 0 | E164: 783.1778676
A165: 151 | B165: 1800 | C165: =IF(A165>$F$7+$B$6,ArrFlow_j(INDIRECT("b"&ROW()-INT($F$7)),C164,$F$8),0) -> 88.88498059 | D165: 0 | E165: 805.0321095
A166: 152 | B166: 1800 | C166: =IF(A166>$F$7+$B$6,ArrFlow_j(INDIRECT("b"&ROW()-INT($F$7)),C165,$F$8),0) -> 71.35377908 | D166: 0 | E166: 822.9872034
A167: 153 | B167: 1800 | C167: =IF(A167>$F$7+$B$6,ArrFlow_j(INDIRECT("b"&ROW()-INT($F$7)),C166,$F$8),0) -> 57.28033864 | D167: 0 | E167: 837.6711224
A168: 154 | B168: 1800 | C168: =IF(A168>$F$7+$B$6,ArrFlow_j(INDIRECT("b"&ROW()-INT($F$7)),C167,$F$8),0) -> 45.98266885 | D168: 0 | E168: 849.6356953
A169: 155 | B169: 1800 | C169: =IF(A169>$F$7+$B$6,ArrFlow_j(INDIRECT("b"&ROW()-INT($F$7)),C168,$F$8),0) -> 36.91329146 | D169: 0 | E169: 859.3558164
A170: 156 | B170: 1800 | C170: =IF(A170>$F$7+$B$6,ArrFlow_j(INDIRECT("b"&ROW()-INT($F$7)),C169,$F$8),0) -> 29.63270989 | D170: 0 | E170: 867.2338874
A171: 157 | B171: 1800 | C171: =IF(A171>$F$7+$B$6,ArrFlow_j(INDIRECT("b"&ROW()-INT($F$7)),C170,$F$8),0) -> 23.78811157 | D171: 0 | E171: 873.6069105
A172: 158 | B172: 1800 | C172: =IF(A172>$F$7+$B$6,ArrFlow_j(INDIRECT("b"&ROW()-INT($F$7)),C171,$F$8),0) -> 19.09627078 | D172: 0 | E172: 878.7545899
A173: 159 | B173: 1800 | C173: =IF(A173>$F$7+$B$6,ArrFlow_j(INDIRECT("b"&ROW()-INT($F$7)),C172,$F$8),0) -> 15.32982375 | D173: 0 | E173: 882.9074615
A174: 160 | B174: 1800 | C174: =IF(A174>$F$7+$B$6,ArrFlow_j(INDIRECT("b"&ROW()-INT($F$7)),C173,$F$8),0) -> 12.30625072 | D174: 0 | E174: 886.2545037
A175: 161 | B175: 1800 | C175: =IF(A175>$F$7+$B$6,ArrFlow_j(INDIRECT("b"&ROW()-INT($F$7)),C174,$F$8),0) -> 9.879031188 | D175: 0 | E175: 888.9499672
A176: 162 | B176: 1800 | C176: =IF(A176>$F$7+$B$6,ArrFlow_j(INDIRECT("b"&ROW()-INT($F$7)),C175,$F$8),0) -> 7.930543542 | D176: 0 | E176: 891.1193317
A177: 163 | B177: 1800 | C177: =IF(A177>$F$7+$B$6,ArrFlow_j(INDIRECT("b"&ROW()-INT($F$7)),C176,$F$8),0) -> 6.366365252 | D177: 0 | E177: 892.8644002
A178: 164 | B178: 1800 | C178: =IF(A178>$F$7+$B$6,ArrFlow_j(INDIRECT("b"&ROW()-INT($F$7)),C177,$F$8),0) -> 5.11069718 | D178: 0 | E178: 894.2675902
A179: 165 | B179: 600 | C179: =IF(A179>$F$7+$B$6,ArrFlow_j(INDIRECT("b"&ROW()-INT($F$7)),C178,$F$8),0) -> 4.102690411 | D179: 0 | E179: 895.3955129
A180: 166 | B180: 600 | C180: =IF(A180>$F$7+$B$6,ArrFlow_j(INDIRECT("b"&ROW()-INT($F$7)),C179,$F$8),0) -> 3.293497543 | D180: 0 | E180: 896.3019316
A181: 167 | B181: 600 | C181: =IF(A181>$F$7+$B$6,ArrFlow_j(INDIRECT("b"&ROW()-INT($F$7)),C180,$F$8),0) -> 2.643905579 | D181: 0 | E181: 897.0301933
A182: 168 | B182: 600 | C182: =IF(A182>$F$7+$B$6,ArrFlow_j(INDIRECT("b"&ROW()-INT($F$7)),C181,$F$8),0) -> 2.122435684 | D182: 0 | E182: 897.6152164
A183: 169 | B183: 600 | C183: =IF(A183>$F$7+$B$6,ArrFlow_j(INDIRECT("b"&ROW()-INT($F$7)),C182,$F$8),0) -> 1.703817741 | D183: 0 | E183: 898.0851106
A184: 170 | B184: 600 | C184: =IF(A184>$F$7+$B$6,ArrFlow_j(INDIRECT("b"&ROW()-INT($F$7)),C183,$F$8),0) -> 1.367765779 | D184: 0 | E184: 898.4624917
A185: 171 | B185: 600 | C185: =IF(A185>$F$7+$B$6,ArrFlow_j(INDIRECT("b"&ROW()-INT($F$7)),C184,$F$8),0) -> 1.097994921 | D185: 0 | E185: 898.7655473
A186: 172 | B186: 600 | C186: =IF(A186>$F$7+$B$6,ArrFlow_j(INDIRECT("b"&ROW()-INT($F$7)),C185,$F$8),0) -> 0.8814322338 | D186: 0 | E186: 899.0088989
A187: 173 | B187: 600 | C187: =IF(A187>$F$7+$B$6,ArrFlow_j(INDIRECT("b"&ROW()-INT($F$7)),C186,$F$8),0) -> 355.7300237 | D187: 0 | E187: 573.1980134
A188: 174 | B188: 600 | C188: =IF(A188>$F$7+$B$6,ArrFlow_j(INDIRECT("b"&ROW()-INT($F$7)),C187,$F$8),0) -> 640.5901635 | D188: 1 | E188: 0
A189: 175 | B189: 600 | C189: =IF(A189>$F$7+$B$6,ArrFlow_j(INDIRECT("b"&ROW()-INT($F$7)),C188,$F$8),0) -> 869.2660022 | D189: 1 | E189: 0
A190: 176 | B190: 600 | C190: =IF(A190>$F$7+$B$6,ArrFlow_j(INDIRECT("b"&ROW()-INT($F$7)),C189,$F$8),0) -> 1052.839033 | D190: 1 | E190: 0
A191: 177 | B191: 600 | C191: =IF(A191>$F$7+$B$6,ArrFlow_j(INDIRECT("b"&ROW()-INT($F$7)),C190,$F$8),0) -> 1200.205094 | D191: 1 | E191: 0
A192: 178 | B192: 600 | C192: =IF(A192>$F$7+$B$6,ArrFlow_j(INDIRECT("b"&ROW()-INT($F$7)),C191,$F$8),0) -> 1318.505456 | D192: 1 | E192: 0
A193: 179 | B193: 600 | C193: =IF(A193>$F$7+$B$6,ArrFlow_j(INDIRECT("b"&ROW()-INT($F$7)),C192,$F$8),0) -> 1413.472883 | D193: 1 | E193: 0
A194: 180 | B194: 0 | C194: =IF(A194>$F$7+$B$6,ArrFlow_j(INDIRECT("b"&ROW()-INT($F$7)),C193,$F$8),0) -> 1489.709438 | D194: 1 | E194: 0
A195: 181 | B195: 0 | C195: =IF(A195>$F$7+$B$6,ArrFlow_j(INDIRECT("b"&ROW()-INT($F$7)),C194,$F$8),0) -> 1550.909501 | D195: 1 | E195: 0
A196: 182 | B196: 0 | C196: =IF(A196>$F$7+$B$6,ArrFlow_j(INDIRECT("b"&ROW()-INT($F$7)),C195,$F$8),0) -> 1600.038788 | D196: 1 | E196: 0
A197: 183 | B197: 0 | C197: =IF(A197>$F$7+$B$6,ArrFlow_j(INDIRECT("b"&ROW()-INT($F$7)),C196,$F$8),0) -> 1639.478076 | D197: 1 | E197: 0
A198: 184 | B198: 0 | C198: =IF(A198>$F$7+$B$6,ArrFlow_j(INDIRECT("b"&ROW()-INT($F$7)),C197,$F$8),0) -> 1671.138567 | D198: 1 | E198: 0
A199: 185 | B199: 0 | C199: =IF(A199>$F$7+$B$6,ArrFlow_j(INDIRECT("b"&ROW()-INT($F$7)),C198,$F$8),0) -> 1696.554512 | D199: 1 | E199: 0
A200: 186 | B200: 0 | C200: =IF(A200>$F$7+$B$6,ArrFlow_j(INDIRECT("b"&ROW()-INT($F$7)),C199,$F$8),0) -> 1716.957551 | D200: 1 | E200: 0
A201: 187 | B201: 0 | C201: =IF(A201>$F$7+$B$6,ArrFlow_j(INDIRECT("b"&ROW()-INT($F$7)),C200,$F$8),0) -> 1733.336402 | D201: 1 | E201: 0
A202: 188 | B202: 0 | C202: =IF(A202>$F$7+$B$6,ArrFlow_j(INDIRECT("b"&ROW()-INT($F$7)),C201,$F$8),0) -> 1509.803149 | D202: 1 | E202: 0
A203: 189 | B203: 0 | C203: =IF(A203>$F$7+$B$6,ArrFlow_j(INDIRECT("b"&ROW()-INT($F$7)),C202,$F$8),0) -> 1330.358408 | D203: 1 | E203: 0
... 11 more rows
